Workbook

Sheet RCA Results Table
B1: DATA QUALITY RESULTS 2018/19 | PERCENTAGE AT THE EXPECTED STANDARD
T2: V0.6: 14-02-2020
B3: ONRC | M3: Asset Management
B4: Quality Dimension | E4: Data Sub-Category | M4: Quality Dimension | P4: Data Category | T4: Score
A5: RCA Name | B5: Accuracy | C5: Complete-ness | D5: Timeliness | E5: Carriageway | F5: Treatment Length | G5: Surfacing | H5: Maintenance Activity | I5: Roughness | J5: Traffic Count | K5: Traffic Estimates | L5: Crash | M5: Accuracy | N5: Complete-ness | O5: Timeliness | P5: Network | Q5: Asset Inventory | R5: Condition | S5: Maintenance Activity | T5: AM Score
A6: Ashburton District Council | B6: 79.16666667 | C6: 90 | D6: 33.33333333 | E6: 87.5 | F6: 25 | G6: 100 | H6: 100 | I6: 100 | J6: 33.33333333 | K6: 83.33333333 | L6: 100 | M6: 80 | N6: 41.66666667 | O6: =VLOOKUP(A6,'[1]Flat Table (REG Website)'!$A$5:$O$73,15,FALSE) -> 44.44444444 | P6: 75 | Q6: 42.85714286 | R6: 100 | S6: 75 | T6: 70
A7: Auckland Transport | B7: 83.33333333 | C7: 50 | D7: 33.33333333 | E7: 100 | F7: 75 | G7: 25 | H7: 100 | I7: 50 | J7: 33.33333333 | K7: 83.33333333 | L7: 0 | M7: 50 | N7: 66.66666667 | O7: =VLOOKUP(A7,'[1]Flat Table (REG Website)'!$A$5:$O$73,15,FALSE) -> 66.66666667 | P7: 75 | Q7: 57.14285714 | R7: 100 | S7: 50 | T7: 75
A8: Buller District Council | B8: 45.83333333 | C8: 40 | D8: 75 | E8: 50 | F8: 87.5 | G8: 25 | H8: 33.33333333 | I8: 50 | J8: 0 | K8: 75 | L8: 50 | M8: 30 | N8: 33.33333333 | O8: =VLOOKUP(A8,'[1]Flat Table (REG Website)'!$A$5:$O$73,15,FALSE) -> 22.22222222 | P8: 0 | Q8: 28.57142857 | R8: 100 | S8: 25 | T8: 59
A9: Carterton District Council | B9: 54.16666667 | C9: 70 | D9: 50 | E9: 87.5 | F9: 75 | G9: 50 | H9: 33.33333333 | I9: 100 | J9: 0 | K9: 50 | L9: 100 | M9: 55.55555556 | N9: 50 | O9: =VLOOKUP(A9,'[1]Flat Table (REG Website)'!$A$5:$O$73,15,FALSE) -> 55.55555556 | P9: 75 | Q9: 52.38095238 | R9: 0 | S9: 50 | T9: 72
A10: Central Hawke's Bay District Council | B10: 79.16666667 | C10: 90 | D10: 83.33333333 | E10: 100 | F10: 87.5 | G10: 50 | H10: 100 | I10: 100 | J10: 100 | K10: 58.33333333 | L10: 100 | M10: 50 | N10: 50 | O10: =VLOOKUP(A10,'[1]Flat Table (REG Website)'!$A$5:$O$73,15,FALSE) -> 61.11111111 | P10: 25 | Q10: 50 | R10: 100 | S10: 75 | T10: 66
A11: Central Otago District Council | B11: 62.5 | C11: 80 | D11: 41.66666667 | E11: 100 | F11: 37.5 | G11: 50 | H11: 66.66666667 | I11: 100 | J11: 33.33333333 | K11: 41.66666667 | L11: 100 | M11: 20 | N11: 91.66666667 | O11: =VLOOKUP(A11,'[1]Flat Table (REG Website)'!$A$5:$O$73,15,FALSE) -> 50 | P11: 25 | Q11: 65 | R11: 50 | S11: 50 | T11: 74
A12: Chatham Islands Council | B12: 50 | C12: 70 | D12: 75 | E12: 75 | F12: 0 | G12: 50 | H12: 33.33333333 | I12: 50 | J12: 66.66666667 | K12: 100 | L12: 100 | M12: 55.55555556 | N12: 58.33333333 | O12: =VLOOKUP(A12,'[1]Flat Table (REG Website)'!$A$5:$O$73,15,FALSE) -> 57.14285714 | P12: 50 | Q12: 63.15789474 | R12: 0 | S12: 50 | T12: 74
A13: Christchurch City Council | B13: 83.33333333 | C13: 60 | D13: 41.66666667 | E13: 100 | F13: 75 | G13: 50 | H13: 100 | I13: 100 | J13: 0 | K13: 66.66666667 | L13: 50 | M13: 70 | N13: 75 | O13: =VLOOKUP(A13,'[1]Flat Table (REG Website)'!$A$5:$O$73,15,FALSE) -> 55.55555556 | P13: 75 | Q13: 61.9047619 | R13: 100 | S13: 75 | T13: 75
A14: Clutha District Council | B14: 79.16666667 | C14: 80 | D14: 100 | E14: 87.5 | F14: 75 | G14: 75 | H14: 66.66666667 | I14: 100 | J14: 100 | K14: 75 | L14: 100 | M14: 70 | N14: 75 | O14: =VLOOKUP(A14,'[1]Flat Table (REG Website)'!$A$5:$O$73,15,FALSE) -> 44.44444444 | P14: 50 | Q14: 61.9047619 | R14: 100 | S14: 75 | T14: 79
A15: DOC Roads | B15: 25 | C15: 40 | D15: 50 | E15: 50 | F15: 25 | G15: 0 | H15: 0 | I15: 50 | J15: 0 | K15: 75 | L15: 100 | M15: 22.22222222 | N15: 0 | O15: =VLOOKUP(A15,'[1]Flat Table (REG Website)'!$A$5:$O$73,15,FALSE) -> 0 | P15: 33.33333333 | Q15: 5.263157895 | R15: 0 | S15: 0 | T15: 24
A16: Dunedin City Council | B16: 100 | C16: 100 | D16: 50 | E16: 100 | F16: 75 | G16: 100 | H16: 100 | I16: 100 | J16: 66.66666667 | K16: 100 | L16: 100 | M16: 70 | N16: 83.33333333 | O16: =VLOOKUP(A16,'[1]Flat Table (REG Website)'!$A$5:$O$73,15,FALSE) -> 72.22222222 | P16: 100 | Q16: 69.04761905 | R16: 100 | S16: 75 | T16: 85
A17: Far North District Council | B17: 79.16666667 | C17: 60 | D17: 75 | E17: 75 | F17: 87.5 | G17: 75 | H17: 66.66666667 | I17: 100 | J17: 66.66666667 | K17: 25 | L17: 100 | M17: 55.55555556 | N17: 50 | O17: =VLOOKUP(A17,'[1]Flat Table (REG Website)'!$A$5:$O$73,15,FALSE) -> 55.55555556 | P17: 25 | Q17: 57.14285714 | R17: 0 | S17: 75 | T17: 64
A18: Gisborne District Council | B18: 58.33333333 | C18: 50 | D18: 25 | E18: 100 | F18: 0 | G18: 25 | H18: 100 | I18: 50 | J18: 0 | K18: 50 | L18: 100 | M18: 50 | N18: 66.66666667 | O18: =VLOOKUP(A18,'[1]Flat Table (REG Website)'!$A$5:$O$73,15,FALSE) -> 33.33333333 | P18: 50 | Q18: 47.61904762 | R18: 100 | S18: 50 | T18: 68
A19: Gore District Council | B19: 62.5 | C19: 70 | D19: 25 | E19: 100 | F19: 12.5 | G19: 50 | H19: 66.66666667 | I19: 100 | J19: 0 | K19: 50 | L19: 100 | M19: 50 | N19: 36.36363636 | O19: =VLOOKUP(A19,'[1]Flat Table (REG Website)'!$A$5:$O$73,15,FALSE) -> 50 | P19: 66.66666667 | Q19: 45 | R19: 50 | S19: 25 | T19: 62
A20: Grey District Council | B20: 62.5 | C20: 30 | D20: 75 | E20: 87.5 | F20: 100 | G20: 25 | H20: 0 | I20: 100 | J20: 0 | K20: 25 | L20: 100 | M20: 20 | N20: 50 | O20: =VLOOKUP(A20,'[1]Flat Table (REG Website)'!$A$5:$O$73,15,FALSE) -> 25 | P20: 0 | Q20: 35 | R20: 50 | S20: 50 | T20: 53
A21: Hamilton City Council | B21: 75 | C21: 70 | D21: 41.66666667 | E21: 100 | F21: 75 | G21: 50 | H21: 100 | I21: 50 | J21: 0 | K21: 91.66666667 | L21: 50 | M21: 60 | N21: 91.66666667 | O21: =VLOOKUP(A21,'[1]Flat Table (REG Website)'!$A$5:$O$73,15,FALSE) -> 61.11111111 | P21: 50 | Q21: 78.57142857 | R21: 50 | S21: 75 | T21: 84
A22: Hastings District Council | B22: 66.66666667 | C22: 60 | D22: 75 | E22: 100 | F22: 0 | G22: 25 | H22: 100 | I22: 50 | J22: 66.66666667 | K22: 100 | L22: 100 | M22: 70 | N22: 58.33333333 | O22: =VLOOKUP(A22,'[1]Flat Table (REG Website)'!$A$5:$O$73,15,FALSE) -> 55.55555556 | P22: 75 | Q22: 57.14285714 | R22: 50 | S22: 75 | T22: 68
A23: Hauraki District Council | B23: 95.83333333 | C23: 70 | D23: 100 | E23: 100 | F23: 87.5 | G23: 100 | H23: 100 | I23: 50 | J23: 33.33333333 | K23: 100 | L23: 100 | M23: 80 | N23: 91.66666667 | O23: =VLOOKUP(A23,'[1]Flat Table (REG Website)'!$A$5:$O$73,15,FALSE) -> 37.5 | P23: 75 | Q23: 75 | R23: 50 | S23: 75 | T23: 87
A24: Horowhenua District Council | B24: 54.16666667 | C24: 70 | D24: 8.333333333 | E24: 100 | F24: 62.5 | G24: 0 | H24: 33.33333333 | I24: 100 | J24: 66.66666667 | K24: 58.33333333 | L24: 50 | M24: 44.44444444 | N24: 58.33333333 | O24: =VLOOKUP(A24,'[1]Flat Table (REG Website)'!$A$5:$O$73,15,FALSE) -> 55.55555556 | P24: 50 | Q24: 52.38095238 | R24: 0 | S24: 75 | T24: 59
A25: Hurunui District Council | B25: 87.5 | C25: 50 | D25: 50 | E25: 100 | F25: 62.5 | G25: 50 | H25: 66.66666667 | I25: 100 | J25: 0 | K25: 75 | L25: 100 | M25: 50 | N25: 50 | O25: =VLOOKUP(A25,'[1]Flat Table (REG Website)'!$A$5:$O$73,15,FALSE) -> 38.88888889 | P25: 75 | Q25: 35.71428571 | R25: 100 | S25: 50 | T25: 64
A26: Hutt City Council | B26: 75 | C26: 60 | D26: 41.66666667 | E26: 100 | F26: 50 | G26: 50 | H26: 33.33333333 | I26: 100 | J26: 0 | K26: 91.66666667 | L26: 50 | M26: 40 | N26: 41.66666667 | O26: =VLOOKUP(A26,'[1]Flat Table (REG Website)'!$A$5:$O$73,15,FALSE) -> 27.77777778 | P26: 50 | Q26: 30.95238095 | R26: 50 | S26: 50 | T26: 60
A27: Invercargill City Council | B27: 87.5 | C27: 70 | D27: 41.66666667 | E27: 87.5 | F27: 75 | G27: 50 | H27: 100 | I27: 100 | J27: 33.33333333 | K27: 66.66666667 | L27: 100 | M27: 50 | N27: 83.33333333 | O27: =VLOOKUP(A27,'[1]Flat Table (REG Website)'!$A$5:$O$73,15,FALSE) -> 27.77777778 | P27: 75 | Q27: 50 | R27: 100 | S27: 50 | T27: 75
A28: Kaikoura District Council | B28: 58.33333333 | C28: 50 | D28: 25 | E28: 50 | F28: 25 | G28: 25 | H28: 66.66666667 | I28: 100 | J28: 66.66666667 | K28: 50 | L28: 50 | M28: 55.55555556 | N28: 45.45454545 | O28: =VLOOKUP(A28,'[1]Flat Table (REG Website)'!$A$5:$O$73,15,FALSE) -> 11.11111111 | P28: 33.33333333 | Q28: 33.33333333 | R28: 0 | S28: 75 | T28: 60
A29: Kaipara District Council | B29: 83.33333333 | C29: 40 | D29: 100 | E29: 62.5 | F29: 87.5 | G29: 25 | H29: 66.66666667 | I29: 100 | J29: 33.33333333 | K29: 100 | L29: 100 | M29: 66.66666667 | N29: 83.33333333 | O29: =VLOOKUP(A29,'[1]Flat Table (REG Website)'!$A$5:$O$73,15,FALSE) -> 66.66666667 | P29: 25 | Q29: 85.71428571 | R29: 0 | S29: 75 | T29: 73
A30: Kapiti Coast District Council | B30: 91.66666667 | C30: 80 | D30: 75 | E30: 100 | F30: 100 | G30: 75 | H30: 100 | I30: 100 | J30: 0 | K30: 100 | L30: 100 | M30: 60 | N30: 83.33333333 | O30: =VLOOKUP(A30,'[1]Flat Table (REG Website)'!$A$5:$O$73,15,FALSE) -> 66.66666667 | P30: 75 | Q30: 71.42857143 | R30: 100 | S30: 50 | T30: 83
A31: Kawerau District Council | B31: 75 | C31: 50 | D31: 50 | E31: 100 | F31: 100 | G31: 25 | H31: 0 | I31: 100 | J31: 0 | K31: 75 | L31: 100 | M31: 55.55555556 | N31: 9.090909091 | O31: =VLOOKUP(A31,'[1]Flat Table (REG Website)'!$A$5:$O$73,15,FALSE) -> 11.11111111 | P31: 100 | Q31: 19.04761905 | R31: 0 | S31: 0 | T31: 42
A32: MacKenzie District Council | B32: 70.83333333 | C32: 80 | D32: 50 | E32: 62.5 | F32: 25 | G32: 75 | H32: 100 | I32: 100 | J32: 100 | K32: 50 | L32: 100 | M32: 30 | N32: 50 | O32: =VLOOKUP(A32,'[1]Flat Table (REG Website)'!$A$5:$O$73,15,FALSE) -> 11.11111111 | P32: 50 | Q32: 14.28571429 | R32: 100 | S32: 75 | T32: 55
A33: Manawatu District Council | B33: 58.33333333 | C33: 90 | D33: 100 | E33: 75 | F33: 50 | G33: 50 | H33: 66.66666667 | I33: 100 | J33: 100 | K33: 75 | L33: 100 | M33: 50 | N33: 83.33333333 | O33: =VLOOKUP(A33,'[1]Flat Table (REG Website)'!$A$5:$O$73,15,FALSE) -> 66.66666667 | P33: 50 | Q33: 71.42857143 | R33: 100 | S33: 50 | T33: 76
A34: Marlborough District Council | B34: 70.83333333 | C34: 90 | D34: 58.33333333 | E34: 100 | F34: 37.5 | G34: 50 | H34: 100 | I34: 100 | J34: 100 | K34: 58.33333333 | L34: 100 | M34: 60 | N34: 58.33333333 | O34: =VLOOKUP(A34,'[1]Flat Table (REG Website)'!$A$5:$O$73,15,FALSE) -> 38.88888889 | P34: 50 | Q34: 45.23809524 | R34: 100 | S34: 75 | T34: 70
A35: Masterton District Council | B35: 50 | C35: 80 | D35: 75 | E35: 100 | F35: 25 | G35: 50 | H35: 66.66666667 | I35: 100 | J35: 66.66666667 | K35: 100 | L35: 50 | M35: 60 | N35: 41.66666667 | O35: =VLOOKUP(A35,'[1]Flat Table (REG Website)'!$A$5:$O$73,15,FALSE) -> 55.55555556 | P35: 75 | Q35: 47.61904762 | R35: 100 | S35: 25 | T35: 73
A36: Matamata-Piako District Council | B36: 91.66666667 | C36: 100 | D36: 100 | E36: 100 | F36: 75 | G36: 100 | H36: 100 | I36: 100 | J36: 100 | K36: 100 | L36: 100 | M36: 80 | N36: 91.66666667 | O36: =VLOOKUP(A36,'[1]Flat Table (REG Website)'!$A$5:$O$73,15,FALSE) -> 61.11111111 | P36: 75 | Q36: 83.33333333 | R36: 50 | S36: 75 | T36: 86
A37: Napier City Council | B37: 54.16666667 | C37: 80 | D37: 75 | E37: 100 | F37: 37.5 | G37: 50 | H37: 33.33333333 | I37: 100 | J37: 66.66666667 | K37: 100 | L37: 100 | M37: 40 | N37: 66.66666667 | O37: =VLOOKUP(A37,'[1]Flat Table (REG Website)'!$A$5:$O$73,15,FALSE) -> 62.5 | P37: 25 | Q37: 55 | R37: 100 | S37: 75 | T37: 64
A38: Nelson City Council | B38: 54.16666667 | C38: 70 | D38: 75 | E38: 100 | F38: 62.5 | G38: 50 | H38: 66.66666667 | I38: 100 | J38: 66.66666667 | K38: 50 | L38: 50 | M38: 22.22222222 | N38: 50 | O38: =VLOOKUP(A38,'[1]Flat Table (REG Website)'!$A$5:$O$73,15,FALSE) -> 56.25 | P38: 0 | Q38: 52.5 | R38: 0 | S38: 50 | T38: 56
A39: New Plymouth District Council | B39: 62.5 | C39: 80 | D39: 25 | E39: 100 | F39: 37.5 | G39: 25 | H39: 100 | I39: 100 | J39: 66.66666667 | K39: 25 | L39: 100 | M39: 70 | N39: 33.33333333 | O39: =VLOOKUP(A39,'[1]Flat Table (REG Website)'!$A$5:$O$73,15,FALSE) -> 16.66666667 | P39: 75 | Q39: 30.95238095 | R39: 50 | S39: 50 | T39: 57
A40: Opotiki District Council | B40: 95.83333333 | C40: 80 | D40: 91.66666667 | E40: 100 | F40: 87.5 | G40: 75 | H40: 66.66666667 | I40: 100 | J40: 100 | K40: 66.66666667 | L40: 100 | M40: 60 | N40: 83.33333333 | O40: =VLOOKUP(A40,'[1]Flat Table (REG Website)'!$A$5:$O$73,15,FALSE) -> 22.22222222 | P40: 75 | Q40: 52.38095238 | R40: 100 | S40: 50 | T40: 81
A41: Otorohanga District Council | B41: 95.83333333 | C41: 90 | D41: 75 | E41: 100 | F41: 87.5 | G41: 100 | H41: 66.66666667 | I41: 100 | J41: 66.66666667 | K41: 100 | L41: 100 | M41: 80 | N41: 91.66666667 | O41: =VLOOKUP(A41,'[1]Flat Table (REG Website)'!$A$5:$O$73,15,FALSE) -> 66.66666667 | P41: 75 | Q41: 85.71428571 | R41: 50 | S41: 75 | T41: 84
A42: Palmerston North City Council | B42: 45.83333333 | C42: 70 | D42: 75 | E42: 100 | F42: 12.5 | G42: 25 | H42: 66.66666667 | I42: 100 | J42: 66.66666667 | K42: 100 | L42: 50 | M42: 30 | N42: 66.66666667 | O42: =VLOOKUP(A42,'[1]Flat Table (REG Website)'!$A$5:$O$73,15,FALSE) -> 11.11111111 | P42: 25 | Q42: 28.57142857 | R42: 100 | S42: 75 | T42: 53
A43: Porirua City Council | B43: 66.66666667 | C43: 80 | D43: 66.66666667 | E43: 100 | F43: 50 | G43: 75 | H43: 33.33333333 | I43: 100 | J43: 66.66666667 | K43: 66.66666667 | L43: 100 | M43: 30 | N43: 41.66666667 | O43: =VLOOKUP(A43,'[1]Flat Table (REG Website)'!$A$5:$O$73,15,FALSE) -> 25 | P43: 0 | Q43: 25 | R43: 100 | S43: 75 | T43: 50
A44: Queenstown-Lakes District Council | B44: 54.16666667 | C44: 90 | D44: 41.66666667 | E44: 75 | F44: 37.5 | G44: 25 | H44: 100 | I44: 100 | J44: 100 | K44: 66.66666667 | L44: 50 | M44: 44.44444444 | N44: 83.33333333 | O44: =VLOOKUP(A44,'[1]Flat Table (REG Website)'!$A$5:$O$73,15,FALSE) -> 72.22222222 | P44: 50 | Q44: 73.80952381 | R44: 0 | S44: 75 | T44: 74
A45: Rangitikei District Council | B45: 79.16666667 | C45: 90 | D45: 100 | E45: 87.5 | F45: 75 | G45: 100 | H45: 100 | I45: 100 | J45: 100 | K45: 75 | L45: 50 | M45: 33.33333333 | N45: 83.33333333 | O45: =VLOOKUP(A45,'[1]Flat Table (REG Website)'!$A$5:$O$73,15,FALSE) -> 72.22222222 | P45: 50 | Q45: 69.04761905 | R45: 0 | S45: 75 | T45: 77
A46: Rotorua Lakes Council | B46: 91.66666667 | C46: 40 | D46: 75 | E46: 62.5 | F46: 62.5 | G46: 50 | H46: 66.66666667 | I46: 50 | J46: 33.33333333 | K46: 100 | L46: 100 | M46: 50 | N46: 41.66666667 | O46: =VLOOKUP(A46,'[1]Flat Table (REG Website)'!$A$5:$O$73,15,FALSE) -> 55.55555556 | P46: 50 | Q46: 47.61904762 | R46: 50 | S46: 50 | T46: 65
A47: Ruapehu District Council | B47: 75 | C47: 70 | D47: 50 | E47: 75 | F47: 50 | G47: 50 | H47: 100 | I47: 100 | J47: 0 | K47: 100 | L47: 100 | M47: 60 | N47: 50 | O47: =VLOOKUP(A47,'[1]Flat Table (REG Website)'!$A$5:$O$73,15,FALSE) -> 11.11111111 | P47: 50 | Q47: 33.33333333 | R47: 100 | S47: 50 | T47: 63
A48: Selwyn District Council | B48: 75 | C48: 60 | D48: 100 | E48: 100 | F48: 25 | G48: 25 | H48: 100 | I48: 50 | J48: 100 | K48: 100 | L48: 100 | M48: 77.77777778 | N48: 75 | O48: =VLOOKUP(A48,'[1]Flat Table (REG Website)'!$A$5:$O$73,15,FALSE) -> 33.33333333 | P48: 100 | Q48: 57.14285714 | R48: 0 | S48: 75 | T48: 77
A49: South Taranaki District Council | B49: 70.83333333 | C49: 90 | D49: 66.66666667 | E49: 75 | F49: 87.5 | G49: 75 | H49: 100 | I49: 100 | J49: 33.33333333 | K49: 66.66666667 | L49: 100 | M49: 50 | N49: 72.72727273 | O49: =VLOOKUP(A49,'[1]Flat Table (REG Website)'!$A$5:$O$73,15,FALSE) -> 33.33333333 | P49: 33.33333333 | Q49: 47.61904762 | R49: 100 | S49: 75 | T49: 68
A50: South Waikato District Council | B50: 100 | C50: 100 | D50: 100 | E50: 100 | F50: 100 | G50: 100 | H50: 100 | I50: 100 | J50: 100 | K50: 100 | L50: 100 | M50: 60 | N50: 91.66666667 | O50: =VLOOKUP(A50,'[1]Flat Table (REG Website)'!$A$5:$O$73,15,FALSE) -> 33.33333333 | P50: 50 | Q50: 66.66666667 | R50: 50 | S50: 75 | T50: 77
A51: South Wairarapa District Council | B51: 79.16666667 | C51: 60 | D51: 25 | E51: 100 | F51: 37.5 | G51: 75 | H51: 100 | I51: 100 | J51: 33.33333333 | K51: 0 | L51: 100 | M51: 50 | N51: 66.66666667 | O51: =VLOOKUP(A51,'[1]Flat Table (REG Website)'!$A$5:$O$73,15,FALSE) -> 44.44444444 | P51: 75 | Q51: 47.61904762 | R51: 100 | S51: 50 | T51: 70
A52: Southland District Council | B52: 70.83333333 | C52: 80 | D52: 50 | E52: 87.5 | F52: 0 | G52: 75 | H52: 66.66666667 | I52: 100 | J52: 33.33333333 | K52: 100 | L52: 100 | M52: 60 | N52: 83.33333333 | O52: =VLOOKUP(A52,'[1]Flat Table (REG Website)'!$A$5:$O$73,15,FALSE) -> 50 | P52: 75 | Q52: 64.28571429 | R52: 100 | S52: 50 | T52: 82
A53: Stratford District Council | B53: 45.83333333 | C53: 40 | D53: 25 | E53: 75 | F53: 62.5 | G53: 25 | H53: 0 | I53: 100 | J53: 33.33333333 | K53: 0 | L53: 50 | M53: 40 | N53: 63.63636364 | O53: =VLOOKUP(A53,'[1]Flat Table (REG Website)'!$A$5:$O$73,15,FALSE) -> 11.11111111 | P53: 33.33333333 | Q53: 47.61904762 | R53: 50 | S53: 0 | T53: 59
A54: Tararua District Council | B54: 75 | C54: 90 | D54: 100 | E54: 87.5 | F54: 62.5 | G54: 100 | H54: 66.66666667 | I54: 100 | J54: 66.66666667 | K54: 100 | L54: 50 | M54: 77.77777778 | N54: 72.72727273 | O54: =VLOOKUP(A54,'[1]Flat Table (REG Website)'!$A$5:$O$73,15,FALSE) -> 44.44444444 | P54: 66.66666667 | Q54: 66.66666667 | R54: 0 | S54: 75 | T54: 72
A55: Tasman District Council | B55: 58.33333333 | C55: 90 | D55: 75 | E55: 87.5 | F55: 87.5 | G55: 50 | H55: 33.33333333 | I55: 100 | J55: 100 | K55: 50 | L55: 100 | M55: 40 | N55: 41.66666667 | O55: =VLOOKUP(A55,'[1]Flat Table (REG Website)'!$A$5:$O$73,15,FALSE) -> 43.75 | P55: 0 | Q55: 37.5 | R55: 100 | S55: 75 | T55: 67
A56: Taupo District Council | B56: 45.83333333 | C56: 50 | D56: 0 | E56: 100 | F56: 37.5 | G56: 0 | H56: 33.33333333 | I56: 100 | J56: 66.66666667 | K56: 0 | L56: 50 | M56: 60 | N56: 75 | O56: =VLOOKUP(A56,'[1]Flat Table (REG Website)'!$A$5:$O$73,15,FALSE) -> 77.77777778 | P56: 75 | Q56: 71.42857143 | R56: 50 | S56: 75 | T56: 86
A57: Tauranga City Council | B57: 75 | C57: 50 | D57: 75 | E57: 100 | F57: 50 | G57: 0 | H57: 100 | I57: 50 | J57: 66.66666667 | K57: 100 | L57: 50 | M57: 70 | N57: 91.66666667 | O57: =VLOOKUP(A57,'[1]Flat Table (REG Website)'!$A$5:$O$73,15,FALSE) -> 88.88888889 | P57: 50 | Q57: 90.47619048 | R57: 100 | S57: 75 | T57: 84
A58: Thames-Coromandel District Council | B58: 83.33333333 | C58: 70 | D58: 75 | E58: 100 | F58: 100 | G58: 75 | H58: 100 | I58: 50 | J58: 33.33333333 | K58: 50 | L58: 100 | M58: 50 | N58: 66.66666667 | O58: =VLOOKUP(A58,'[1]Flat Table (REG Website)'!$A$5:$O$73,15,FALSE) -> 72.22222222 | P58: 25 | Q58: 69.04761905 | R58: 50 | S58: 75 | T58: 73
A59: Timaru District Council | B59: 87.5 | C59: 100 | D59: 100 | E59: 87.5 | F59: 100 | G59: 75 | H59: 100 | I59: 100 | J59: 100 | K59: 100 | L59: 100 | M59: 60 | N59: 66.66666667 | O59: =VLOOKUP(A59,'[1]Flat Table (REG Website)'!$A$5:$O$73,15,FALSE) -> 38.88888889 | P59: 75 | Q59: 54.76190476 | R59: 50 | S59: 50 | T59: 73
A60: Upper Hutt City Council | B60: 58.33333333 | C60: 50 | D60: 58.33333333 | E60: 100 | F60: 50 | G60: 50 | H60: 0 | I60: 100 | J60: 66.66666667 | K60: 33.33333333 | L60: 50 | M60: 30 | N60: 50 | O60: =VLOOKUP(A60,'[1]Flat Table (REG Website)'!$A$5:$O$73,15,FALSE) -> 55.55555556 | P60: 25 | Q60: 52.38095238 | R60: 100 | S60: 0 | T60: 57
A61: Waikato District Council | B61: 91.66666667 | C61: 100 | D61: 75 | E61: 100 | F61: 75 | G61: 100 | H61: 100 | I61: 100 | J61: 66.66666667 | K61: 100 | L61: 100 | M61: 90 | N61: 100 | O61: =VLOOKUP(A61,'[1]Flat Table (REG Website)'!$A$5:$O$73,15,FALSE) -> 77.77777778 | P61: 100 | Q61: 90.47619048 | R61: 100 | S61: 75 | T61: 90
A62: Waimakariri District Council | B62: 58.33333333 | C62: 70 | D62: 66.66666667 | E62: 75 | F62: 25 | G62: 25 | H62: 66.66666667 | I62: 100 | J62: 100 | K62: 66.66666667 | L62: 100 | M62: 22.22222222 | N62: 50 | O62: =VLOOKUP(A62,'[1]Flat Table (REG Website)'!$A$5:$O$73,15,FALSE) -> 44.44444444 | P62: 0 | Q62: 42.85714286 | R62: 0 | S62: 75 | T62: 51
A63: Waimate District Council | B63: 87.5 | C63: 70 | D63: 75 | E63: 100 | F63: 87.5 | G63: 75 | H63: 100 | I63: 100 | J63: 66.66666667 | K63: 50 | L63: 50 | M63: 40 | N63: 66.66666667 | O63: =VLOOKUP(A63,'[1]Flat Table (REG Website)'!$A$5:$O$73,15,FALSE) -> 22.22222222 | P63: 50 | Q63: 38.0952381 | R63: 100 | S63: 50 | T63: 72
A64: Waipa District Council | B64: 95.83333333 | C64: 100 | D64: 75 | E64: 100 | F64: 87.5 | G64: 100 | H64: 100 | I64: 100 | J64: 66.66666667 | K64: 100 | L64: 100 | M64: 70 | N64: 91.66666667 | O64: =VLOOKUP(A64,'[1]Flat Table (REG Website)'!$A$5:$O$73,15,FALSE) -> 66.66666667 | P64: 75 | Q64: 80.95238095 | R64: 50 | S64: 75 | T64: 81
A65: Wairoa District Council | B65: 79.16666667 | C65: 70 | D65: 50 | E65: 100 | F65: 62.5 | G65: 75 | H65: 100 | I65: 100 | J65: 66.66666667 | K65: 50 | L65: 0 | M65: 33.33333333 | N65: 75 | O65: =VLOOKUP(A65,'[1]Flat Table (REG Website)'!$A$5:$O$73,15,FALSE) -> 37.5 | P65: 50 | Q65: 55 | R65: 0 | S65: 50 | T65: 62
A66: Waitaki District Council | B66: 87.5 | C66: 90 | D66: 87.5 | E66: 100 | F66: 87.5 | G66: 50 | H66: 100 | I66: 100 | J66: 100 | K66: 87.5 | L66: 100 | M66: 50 | N66: 41.66666667 | O66: =VLOOKUP(A66,'[1]Flat Table (REG Website)'!$A$5:$O$73,15,FALSE) -> 27.77777778 | P66: 25 | Q66: 30.95238095 | R66: 100 | S66: 75 | T66: 63
A67: Waitomo District Council | B67: 100 | C67: 80 | D67: 100 | E67: 100 | F67: 100 | G67: 100 | H67: 66.66666667 | I67: 50 | J67: 100 | K67: 100 | L67: 100 | M67: 80 | N67: 90.90909091 | O67: =VLOOKUP(A67,'[1]Flat Table (REG Website)'!$A$5:$O$73,15,FALSE) -> 55.55555556 | P67: 66.66666667 | Q67: 80.95238095 | R67: 50 | S67: 75 | T67: 86
A68: Wellington City Council | B68: 83.33333333 | C68: 90 | D68: 75 | E68: 100 | F68: 50 | G68: 50 | H68: 100 | I68: 100 | J68: 100 | K68: 100 | L68: 100 | M68: 20 | N68: 91.66666667 | O68: =VLOOKUP(A68,'[1]Flat Table (REG Website)'!$A$5:$O$73,15,FALSE) -> 66.66666667 | P68: 50 | Q68: 61.9047619 | R68: 100 | S68: 50 | T68: 70
A69: Western Bay of Plenty District Council | B69: 58.33333333 | C69: 70 | D69: 75 | E69: 100 | F69: 0 | G69: 0 | H69: 100 | I69: 100 | J69: 100 | K69: 75 | L69: 100 | M69: 80 | N69: 100 | O69: =VLOOKUP(A69,'[1]Flat Table (REG Website)'!$A$5:$O$73,15,FALSE) -> 61.11111111 | P69: 75 | Q69: 83.33333333 | R69: 100 | S69: 75 | T69: 88
A70: Westland District Council | B70: 79.16666667 | C70: 30 | D70: 25 | E70: 75 | F70: 62.5 | G70: 25 | H70: 33.33333333 | I70: 100 | J70: 0 | K70: 25 | L70: 100 | M70: 77.77777778 | N70: 25 | O70: =VLOOKUP(A70,'[1]Flat Table (REG Website)'!$A$5:$O$73,15,FALSE) -> 0 | P70: 50 | Q70: 28.57142857 | R70: 0 | S70: 50 | T70: 51
A71: Whakatane District Council | B71: 83.33333333 | C71: 90 | D71: 75 | E71: 100 | F71: 50 | G71: 75 | H71: 33.33333333 | I71: 100 | J71: 100 | K71: 100 | L71: 100 | M71: 60 | N71: 58.33333333 | O71: =VLOOKUP(A71,'[1]Flat Table (REG Website)'!$A$5:$O$73,15,FALSE) -> 44.44444444 | P71: 25 | Q71: 57.14285714 | R71: 100 | S71: 50 | T71: 70
A72: Whanganui District Council | B72: 54.16666667 | C72: 70 | D72: 50 | E72: 87.5 | F72: 75 | G72: 0 | H72: 100 | I72: 100 | J72: 66.66666667 | K72: 25 | L72: 50 | M72: 22.22222222 | N72: 81.81818182 | O72: =VLOOKUP(A72,'[1]Flat Table (REG Website)'!$A$5:$O$73,15,FALSE) -> 11.11111111 | P72: 0 | Q72: 42.85714286 | R72: 0 | S72: 75 | T72: 55
A73: Whangarei District Council | B73: 62.5 | C73: 50 | D73: 75 | E73: 87.5 | F73: 25 | G73: 0 | H73: 66.66666667 | I73: 100 | J73: 33.33333333 | K73: 100 | L73: 100 | M73: 66.66666667 | N73: 58.33333333 | O73: =VLOOKUP(A73,'[1]Flat Table (REG Website)'!$A$5:$O$73,15,FALSE) -> 44.44444444 | P73: 25 | Q73: 61.9047619 | R73: 0 | S73: 75 | T73: 66

Sheet ONRC Category Results (hidden)
A1: REG DATA QUALITY RESULTS 2018/19 | PERCENTAGE AT THE EXPECTED STANDARD
B3: ONRC
B4: Data Category
B5: Network | C5: Asset Inventory | D5: Maintenance Acitivity | E5: Condition | F5: Demand/Use | G5: Crash
A6: Ashburton District Council | B6: 56.25 | C6: 100 | D6: 100 | E6: 100 | F6: 61.9047619 | G6: 100
A7: Auckland Transport | B7: 87.5 | C7: 25 | D7: 100 | E7: 50 | F7: 61.9047619 | G7: 0
A8: Buller District Council | B8: 68.75 | C8: 25 | D8: 33.33333333 | E8: 50 | F8: 42.85714286 | G8: 50
A9: Carterton District Council | B9: 81.25 | C9: 50 | D9: 33.33333333 | E9: 100 | F9: 28.57142857 | G9: 100
A10: Central Hawke's Bay District Council | B10: 93.75 | C10: 50 | D10: 100 | E10: 100 | F10: 76.19047619 | G10: 100
A11: Central Otago District Council | B11: 68.75 | C11: 50 | D11: 66.66666667 | E11: 100 | F11: 38.0952381 | G11: 100
A12: Chatham Islands Council | B12: 37.5 | C12: 50 | D12: 33.33333333 | E12: 50 | F12: 85.71428571 | G12: 100
A13: Christchurch City Council | B13: 87.5 | C13: 50 | D13: 100 | E13: 100 | F13: 38.0952381 | G13: 50
A14: Clutha District Council | B14: 81.25 | C14: 75 | D14: 66.66666667 | E14: 100 | F14: 85.71428571 | G14: 100
A15: DOC Roads | B15: 37.5 | C15: 0 | D15: 0 | E15: 50 | F15: 42.85714286 | G15: 100
A16: Dunedin City Council | B16: 87.5 | C16: 100 | D16: 100 | E16: 100 | F16: 85.71428571 | G16: 100
A17: Far North District Council | B17: 81.25 | C17: 75 | D17: 66.66666667 | E17: 100 | F17: 42.85714286 | G17: 100
A18: Gisborne District Council | B18: 50 | C18: 25 | D18: 100 | E18: 50 | F18: 28.57142857 | G18: 100
A19: Gore District Council | B19: 56.25 | C19: 50 | D19: 66.66666667 | E19: 100 | F19: 28.57142857 | G19: 100
A20: Grey District Council | B20: 93.75 | C20: 25 | D20: 0 | E20: 100 | F20: 14.28571429 | G20: 100
A21: Hamilton City Council | B21: 87.5 | C21: 50 | D21: 100 | E21: 50 | F21: 52.38095238 | G21: 50
A22: Hastings District Council | B22: 50 | C22: 25 | D22: 100 | E22: 50 | F22: 85.71428571 | G22: 100
A23: Hauraki District Council | B23: 93.75 | C23: 100 | D23: 100 | E23: 50 | F23: 71.42857143 | G23: 100
A24: Horowhenua District Council | B24: 81.25 | C24: 0 | D24: 33.33333333 | E24: 100 | F24: 61.9047619 | G24: 50
A25: Hurunui District Council | B25: 81.25 | C25: 50 | D25: 66.66666667 | E25: 100 | F25: 42.85714286 | G25: 100
A26: Hutt City Council | B26: 75 | C26: 50 | D26: 33.33333333 | E26: 100 | F26: 52.38095238 | G26: 50
A27: Invercargill City Council | B27: 81.25 | C27: 50 | D27: 100 | E27: 100 | F27: 52.38095238 | G27: 100
A28: Kaikoura District Council | B28: 37.5 | C28: 25 | D28: 66.66666667 | E28: 100 | F28: 57.14285714 | G28: 50
A29: Kaipara District Council | B29: 75 | C29: 25 | D29: 66.66666667 | E29: 100 | F29: 71.42857143 | G29: 100
A30: Kapiti Coast District Council | B30: 100 | C30: 75 | D30: 100 | E30: 100 | F30: 57.14285714 | G30: 100
A31: Kawerau District Council | B31: 100 | C31: 25 | D31: 0 | E31: 100 | F31: 42.85714286 | G31: 100
A32: MacKenzie District Council | B32: 43.75 | C32: 75 | D32: 100 | E32: 100 | F32: 71.42857143 | G32: 100
A33: Manawatu District Council | B33: 62.5 | C33: 50 | D33: 66.66666667 | E33: 100 | F33: 85.71428571 | G33: 100
A34: Marlborough District Council | B34: 68.75 | C34: 50 | D34: 100 | E34: 100 | F34: 76.19047619 | G34: 100
A35: Masterton District Council | B35: 62.5 | C35: 50 | D35: 66.66666667 | E35: 100 | F35: 85.71428571 | G35: 50
A36: Matamata-Piako District Council | B36: 87.5 | C36: 100 | D36: 100 | E36: 100 | F36: 100 | G36: 100
A37: Napier City Council | B37: 68.75 | C37: 50 | D37: 33.33333333 | E37: 100 | F37: 85.71428571 | G37: 100
A38: Nelson City Council | B38: 81.25 | C38: 50 | D38: 66.66666667 | E38: 100 | F38: 57.14285714 | G38: 50
A39: New Plymouth District Council | B39: 68.75 | C39: 25 | D39: 100 | E39: 100 | F39: 42.85714286 | G39: 100
A40: Opotiki District Council | B40: 93.75 | C40: 75 | D40: 66.66666667 | E40: 100 | F40: 80.95238095 | G40: 100
A41: Otorohanga District Council | B41: 93.75 | C41: 100 | D41: 66.66666667 | E41: 100 | F41: 85.71428571 | G41: 100
A42: Palmerston North City Council | B42: 56.25 | C42: 25 | D42: 66.66666667 | E42: 100 | F42: 85.71428571 | G42: 50
A43: Porirua City Council | B43: 75 | C43: 75 | D43: 33.33333333 | E43: 100 | F43: 66.66666667 | G43: 100
A44: Queenstown-Lakes District Council | B44: 56.25 | C44: 25 | D44: 100 | E44: 100 | F44: 80.95238095 | G44: 50
A45: Rangitikei District Council | B45: 81.25 | C45: 100 | D45: 100 | E45: 100 | F45: 85.71428571 | G45: 50
A46: Rotorua Lakes Council | B46: 62.5 | C46: 50 | D46: 66.66666667 | E46: 50 | F46: 71.42857143 | G46: 100
A47: Ruapehu District Council | B47: 62.5 | C47: 50 | D47: 100 | E47: 100 | F47: 57.14285714 | G47: 100
A48: Selwyn District Council | B48: 62.5 | C48: 25 | D48: 100 | E48: 50 | F48: 100 | G48: 100
A49: South Taranaki District Council | B49: 81.25 | C49: 75 | D49: 100 | E49: 100 | F49: 52.38095238 | G49: 100
A50: South Waikato District Council | B50: 100 | C50: 100 | D50: 100 | E50: 100 | F50: 100 | G50: 100
A51: South Wairarapa District Council | B51: 68.75 | C51: 75 | D51: 100 | E51: 100 | F51: 14.28571429 | G51: 100
A52: Southland District Council | B52: 43.75 | C52: 75 | D52: 66.66666667 | E52: 100 | F52: 71.42857143 | G52: 100
A53: Stratford District Council | B53: 68.75 | C53: 25 | D53: 0 | E53: 100 | F53: 14.28571429 | G53: 50
A54: Tararua District Council | B54: 75 | C54: 100 | D54: 66.66666667 | E54: 100 | F54: 85.71428571 | G54: 50
A55: Tasman District Council | B55: 87.5 | C55: 50 | D55: 33.33333333 | E55: 100 | F55: 71.42857143 | G55: 100
A56: Taupo District Council | B56: 68.75 | C56: 0 | D56: 33.33333333 | E56: 100 | F56: 28.57142857 | G56: 50
A57: Tauranga City Council | B57: 75 | C57: 0 | D57: 100 | E57: 50 | F57: 85.71428571 | G57: 50
A58: Thames-Coromandel District Council | B58: 100 | C58: 75 | D58: 100 | E58: 50 | F58: 42.85714286 | G58: 100
A59: Timaru District Council | B59: 93.75 | C59: 75 | D59: 100 | E59: 100 | F59: 100 | G59: 100
A60: Upper Hutt City Council | B60: 75 | C60: 50 | D60: 0 | E60: 100 | F60: 47.61904762 | G60: 50
A61: Waikato District Council | B61: 87.5 | C61: 100 | D61: 100 | E61: 100 | F61: 85.71428571 | G61: 100
A62: Waimakariri District Council | B62: 50 | C62: 25 | D62: 66.66666667 | E62: 100 | F62: 80.95238095 | G62: 100
A63: Waimate District Council | B63: 93.75 | C63: 75 | D63: 100 | E63: 100 | F63: 57.14285714 | G63: 50
A64: Waipa District Council | B64: 93.75 | C64: 100 | D64: 100 | E64: 100 | F64: 85.71428571 | G64: 100
A65: Wairoa District Council | B65: 81.25 | C65: 75 | D65: 100 | E65: 100 | F65: 57.14285714 | G65: 0
A66: Waitaki District Council | B66: 93.75 | C66: 50 | D66: 100 | E66: 100 | F66: 92.85714286 | G66: 100
A67: Waitomo District Council | B67: 100 | C67: 100 | D67: 66.66666667 | E67: 50 | F67: 100 | G67: 100
A68: Wellington City Council | B68: 75 | C68: 50 | D68: 100 | E68: 100 | F68: 100 | G68: 100
A69: Western Bay of Plenty District Council | B69: 50 | C69: 0 | D69: 100 | E69: 100 | F69: 85.71428571 | G69: 100
A70: Westland District Council | B70: 68.75 | C70: 25 | D70: 33.33333333 | E70: 100 | F70: 14.28571429 | G70: 100
A71: Whakatane District Council | B71: 75 | C71: 75 | D71: 33.33333333 | E71: 100 | F71: 100 | G71: 100
A72: Whanganui District Council | B72: 81.25 | C72: 0 | D72: 100 | E72: 100 | F72: 42.85714286 | G72: 50
A73: Whangarei District Council | B73: 56.25 | C73: 0 | D73: 66.66666667 | E73: 100 | F73: 71.42857143 | G73: 100

Sheet Region & Peer Group Results (hidden)
A1: REG DATA QUALITY RESULTS 2018/19 | PERCENTAGE AT THE EXPECTED STANDARD (REGIONS)
B3: ONRC | M3: Asset Management | V3: ONRC
B4: Quality Dimension | E4: Data Sub-Category | M4: Quality Dimension | P4: Data Category | T4: Score | V4: Data Category
A5: Region | B5: Accuracy | C5: Completeness | D5: Timeliness | E5: Carriageway | F5: Treatment Length | G5: Surfacing | H5: Maintenance Activity | I5: Roughness | J5: Traffic Count | K5: Traffic Estimates | L5: Crash | M5: Accuracy | N5: Completeness | O5: Timeliness | P5: Network | Q5: Asset Inventory | R5: Condition | S5: Maintenance Activity | T5: AM Score | V5: Network | W5: Asset Inventory | X5: Maintenance Acitivity | Y5: Condition | Z5: Demand/Use | AA5: Crash
A6: Bay of Plenty | B6: 75.69444444 | C6: 63.33333333 | D6: 73.61111111 | E6: 93.75 | F6: 58.33333333 | G6: 37.5 | H6: 61.11111111 | I6: 83.33333333 | J6: 66.66666667 | K6: 86.11111111 | L6: 91.66666667 | M6: 62.71186441 | N6: 64.78873239 | O6: 47.22222222 | P6: 60.86956522 | Q6: 58.33333333 | R6: 50 | S6: 81.81818182 | T6: 71.66666667 | V6: 76.04166667 | W6: 37.5 | X6: 61.11111111 | Y6: 83.33333333 | Z6: 77.77777778 | AA6: 91.66666667
A7: Canterbury | B7: 76.38888889 | C7: 70 | D7: 60.18518519 | E7: 84.72222222 | F7: 50 | G7: 55.55555556 | H7: 88.88888889 | I7: 94.44444444 | J7: 62.96296296 | K7: 71.2962963 | L7: 83.33333333 | M7: 54.02298851 | N7: 57.94392523 | O7: 33.33333333 | P7: 60 | Q7: 42.32804233 | R7: 66.66666667 | S7: 73.33333333 | T7: 66.33333333 | V7: 67.36111111 | W7: 55.55555556 | X7: 88.88888889 | Y7: 94.44444444 | Z7: 67.72486772 | AA7: 83.33333333
A8: Gisborne and Hawkes Bay | B8: 69.16666667 | C8: 70 | D8: 61.66666667 | E8: 100 | F8: 37.5 | G8: 45 | H8: 86.66666667 | I8: 80 | J8: 60 | K8: 71.66666667 | L8: 80 | M8: 48.97959184 | N8: 63.33333333 | O8: 50 | P8: 45 | Q8: 52.91262136 | R8: 65 | S8: 77.77777778 | T8: 65.6 | V8: 68.75 | W8: 45 | X8: 86.66666667 | Y8: 80 | Z8: 66.66666667 | AA8: 80
A9: No Region | B9: 43.05555556 | C9: 60 | D9: 55.55555556 | E9: 70.83333333 | F9: 16.66666667 | G9: 16.66666667 | H9: 44.44444444 | I9: 66.66666667 | J9: 44.44444444 | K9: 88.88888889 | L9: 83.33333333 | M9: 42.85714286 | N9: 42.85714286 | O9: 39.13043478 | P9: 36.36363636 | Q9: 44.06779661 | R9: 41.66666667 | S9: 25 | T9: 55 | V9: 43.75 | W9: 16.66666667 | X9: 44.44444444 | Y9: 66.66666667 | Z9: 69.84126984 | AA9: 83.33333333
A10: North Auckland | B10: 77.08333333 | C10: 50 | D10: 70.83333333 | E10: 81.25 | F10: 68.75 | G10: 31.25 | H10: 75 | I10: 87.5 | J10: 41.66666667 | K10: 77.08333333 | L10: 75 | M10: 59.45945946 | N10: 64.58333333 | O10: 58.33333333 | P10: 37.5 | Q10: 65.47619048 | R10: 68.75 | S10: 40 | T10: 69.5 | V10: 75 | W10: 31.25 | X10: 75 | Y10: 87.5 | Z10: 61.9047619 | AA10: 75
A11: Southland and Otago | B11: 72.39583333 | C11: 82.5 | D11: 54.6875 | E11: 92.1875 | F11: 50 | G11: 59.375 | H11: 83.33333333 | I11: 100 | J11: 58.33333333 | K11: 73.4375 | L11: 93.75 | M11: 51.89873418 | N11: 72.63157895 | O11: 49.28571429 | P11: 58.06451613 | Q11: 57.53012048 | R11: 59.375 | S11: 80 | T11: 74.25 | V11: 71.09375 | W11: 59.375 | X11: 83.33333333 | Y11: 100 | Z11: 66.96428571 | AA11: 93.75
A12: Taranaki, Manawatu and Whanganui | B12: 62.08333333 | C12: 76 | D12: 60 | E12: 86.25 | F12: 57.5 | G12: 45 | H12: 73.33333333 | I12: 100 | J12: 60 | K12: 62.5 | L12: 70 | M12: 47.91666667 | N12: 66.37931034 | O12: 33.33333333 | P12: 44.44444444 | Q12: 49.04761905 | R12: 60 | S12: 62.5 | T12: 63.9 | V12: 71.875 | W12: 45 | X12: 73.33333333 | Y12: 100 | Z12: 61.42857143 | AA12: 70
A13: Top of South Island and West Coast | B13: 61.80555556 | C13: 58.33333333 | D13: 63.88888889 | E13: 83.33333333 | F13: 72.91666667 | G13: 37.5 | H13: 44.44444444 | I13: 91.66666667 | J13: 44.44444444 | K13: 47.22222222 | L13: 83.33333333 | M13: 41.37931034 | N13: 43.05555556 | O13: 30.39215686 | P13: 16.66666667 | Q13: 37.80487805 | R13: 54.16666667 | S13: 70 | T13: 59.33333333 | V13: 78.125 | W13: 37.5 | X13: 44.44444444 | Y13: 91.66666667 | Z13: 46.03174603 | AA13: 83.33333333
A14: Waikato | B14: 88.33333333 | C14: 83 | D14: 74.16666667 | E14: 100 | F14: 82.5 | G14: 82.5 | H14: 86.66666667 | I14: 80 | J14: 63.33333333 | K14: 84.16666667 | L14: 90 | M14: 71 | N14: 88.23529412 | O14: 61.23595506 | P14: 66.66666667 | Q14: 78.22966507 | R14: 75 | S14: 55 | T14: 83.4 | V14: 91.25 | W14: 82.5 | X14: 86.66666667 | Y14: 80 | Z14: 75.23809524 | AA14: 90
A15: Wellington | B15: 69.79166667 | C15: 71.25 | D15: 58.33333333 | E15: 98.4375 | F15: 54.6875 | G15: 59.375 | H15: 58.33333333 | I15: 100 | J15: 41.66666667 | K15: 67.70833333 | L15: 81.25 | M15: 43.03797468 | N15: 58.33333333 | O15: 50 | P15: 53.125 | Q15: 48.80239521 | R15: 43.75 | S15: 86.66666667 | T15: 66.875 | V15: 76.5625 | W15: 59.375 | X15: 58.33333333 | Y15: 100 | Z15: 56.54761905 | AA15: 81.25
A18: REG DATA QUALITY RESULTS 2018/19 | PERCENTAGE AT THE EXPECTED STANDARD (PEER GROUPS)
B20: ONRC | M20: Asset Management | V20: ONRC
B21: Quality Dimension | E21: Data Sub-Category | M21: Quality Dimension | P21: Data Category | T21: Score | V21: Data Category
A22: Region | B22: Accuracy | C22: Completeness | D22: Timeliness | E22: Carriageway | F22: Treatment Length | G22: Surfacing | H22: Maintenance Activity | I22: Roughness | J22: Traffic Count | K22: Traffic Estimates | L22: Crash | M22: Accuracy | N22: Completeness | O22: Timeliness | P22: Network | Q22: Asset Inventory | R22: Condition | S22: Maintenance Activity | T22: AM Score | V22: Network | W22: Asset Inventory | X22: Maintenance Acitivity | Y22: Condition | Z22: Demand/Use | AA22: Crash
A23: Provincial Centres | B23: 70.98765432 | C23: 71.11111111 | D23: 62.65432099 | E23: 89.81481481 | F23: 57.40740741 | G23: 45.37037037 | H23: 74.07407407 | I23: 88.88888889 | J23: 64.19753086 | K23: 69.13580247 | L23: 87.03703704 | M23: 56.27376426 | N23: 63.97515528 | O23: 43.54166667 | P23: 49.05660377 | Q23: 54.69858156 | R23: 63.88888889 | S23: 61.70212766 | T23: 69.74074074 | V23: 73.61111111 | W23: 45.37037037 | X23: 74.07407407 | Y23: 88.88888889 | Z23: 67.01940035 | AA23: 87.03703704
A24: Highly Urban | B24: 75 | C24: 64 | D24: 56.66666667 | E24: 100 | F24: 65 | G24: 35 | H24: 66.66666667 | I24: 80 | J24: 33.33333333 | K24: 91.66666667 | L24: 70 | M24: 48.97959184 | N24: 66.10169492 | O24: 51.11111111 | P24: 57.89473684 | Q24: 56.19047619 | R24: 50 | S24: 66.66666667 | T24: 68 | V24: 82.5 | W24: 35 | X24: 66.66666667 | Y24: 80 | Z24: 66.66666667 | AA24: 70
A25: Rural Districts | B25: 73.3974359 | C25: 75 | D25: 67.78846154 | E25: 88.46153846 | F25: 58.65384615 | G25: 66.34615385 | H25: 76.92307692 | I25: 94.23076923 | J25: 57.69230769 | K25: 69.71153846 | L25: 88.46153846 | M25: 55.95238095 | N25: 67.4267101 | O25: 45.63318777 | P25: 55.55555556 | Q25: 56.09981516 | R25: 60.57692308 | S25: 70.45454545 | T25: 71.30769231 | V25: 73.55769231 | W25: 66.34615385 | X25: 76.92307692 | Y25: 94.23076923 | Z25: 64.56043956 | AA25: 88.46153846
A26: Cities | B26: 72.22222222 | C26: 67.77777778 | D26: 60.18518519 | E26: 98.61111111 | F26: 59.72222222 | G26: 50 | H26: 66.66666667 | I26: 94.44444444 | J26: 44.44444444 | K26: 74.07407407 | L26: 66.66666667 | M26: 42.69662921 | N26: 64.81481481 | O26: 47.43589744 | P26: 41.66666667 | Q26: 50.53763441 | R26: 55.55555556 | S26: 94.11764706 | T26: 65.33333333 | V26: 79.16666667 | W26: 50 | X26: 66.66666667 | Y26: 94.44444444 | Z26: 61.37566138 | AA26: 66.66666667
A27: No Group | B27: 43.75 | C27: 55 | D27: 45.83333333 | E27: 68.75 | F27: 25 | G27: 0 | H27: 50 | I27: 75 | J27: 33.33333333 | K27: 83.33333333 | L27: 75 | M27: 36.84210526 | N27: 34.7826087 | O27: 31.25 | P27: 28.57142857 | Q27: 35 | R27: 37.5 | S27: 33.33333333 | T27: 45.5 | V27: 46.875 | W27: 0 | X27: 50 | Y27: 75 | Z27: 61.9047619 | AA27: 75
A30: REG DATA QUALITY RESULTS 2018/19 | PERCENTAGE AT THE EXPECTED STANDARD (NATIONAL)
B32: ONRC | M32: Asset Management | V32: ONRC
B33: Quality Dimension | E33: Data Sub-Category | M33: Quality Dimension | P33: Data Category | T33: Score | V33: Data Category
A34: Region | B34: Accuracy | C34: Completeness | D34: Timeliness | E34: Carriageway | F34: Treatment Length | G34: Surfacing | H34: Maintenance Activity | I34: Roughness | J34: Traffic Count | K34: Traffic Estimates | L34: Crash | M34: Accuracy | N34: Completeness | O34: Timeliness | P34: Network | Q34: Asset Inventory | R34: Condition | S34: Maintenance Activity | T34: AM Score | V34: Network | W34: Asset Inventory | X34: Maintenance Acitivity | Y34: Condition | Z34: Demand/Use | AA34: Crash
A35: National | B35: 71.55797101 | C35: 71.15942029 | D35: 63.34541063 | E35: 90.57971014 | F35: 57.78985507 | G35: 51.8115942 | H35: 72.9468599 | I35: 90.57971014 | J35: 56.03864734 | K35: 72.0410628 | L35: 83.33333333 | M35: 53.27380952 | N35: 64.71306471 | O35: 45.06578947 | P35: 50.56179775 | Q35: 54.24791086 | R35: 59.7826087 | S35: 69.16666667 | T35: 68.92753623 | V35: 74.18478261 | W35: 51.8115942 | X35: 72.9468599 | Y35: 90.57971014 | Z35: 65.18288475 | AA35: 83.33333333

Sheet Lookups (hidden)
H1: RCA_ID | I1: RCA_Name | J1: old_RCA_Name | K1: Peer Group | L1: Region
A2: Financial Years | H2: 57 | I2: Ashburton District Council | J2: Ashburton District | K2: Rural Districts | L2: Canterbury
A3: 2018/19 | H3: 80 | I3: Auckland Transport | J3: Auckland | K3: Cities | L3: North Auckland
A4: 2017/18 | H4: 58 | I4: Buller District Council | J4: Buller District | K4: Provincial Centres | L4: Top of South Island and West Coast
A5: 2016/17 | H5: 23 | I5: Carterton District Council | J5: Carterton District | K5: Rural Districts | L5: Wellington
A6: 2015/16 | H6: 38 | I6: Central Hawke's Bay District Council | J6: Central Hawkes Bay District | K6: Rural Districts | L6: Gisborne and Hawkes Bay
A7: 2014/15 | H7: 59 | I7: Central Otago District Council | J7: Central Otago District | K7: Rural Districts | L7: Southland and Otago
H8: 86 | I8: Chatham Islands Council | J8: Chatham Island | K8: Rural Districts | L8: No Region
A9: Comparison | H9: 76 | I9: Christchurch City Council | J9: Christchurch City | K9: Cities | L9: Canterbury
A10: National | H10: 60 | I10: Clutha District Council | J10: Clutha District | K10: Rural Districts | L10: Southland and Otago
A11: Regional | H11: 88 | I11: DOC Roads | J11: DOC Roads | K11: No Group | L11: No Region
A12: Peer Group | H12: 61 | I12: Dunedin City Council | J12: Dunedin City | K12: Provincial Centres | L12: Southland and Otago
H13: 79 | I13: Far North District Council | J13: Far North District | K13: Rural Districts | L13: North Auckland
A14: Shade | B14: Threshold (>) | H14: 39 | I14: Gisborne District Council | J14: Gisborne District | K14: Provincial Centres | L14: Gisborne and Hawkes Bay
B15: 80 | H15: 62 | I15: Gore District Council | J15: Gore District | K15: Rural Districts | L15: Southland and Otago
B16: 70 | H16: 63 | I16: Grey District Council | J16: Grey District | K16: Provincial Centres | L16: Top of South Island and West Coast
B17: 50 | H17: 11 | I17: Hamilton City Council | J17: Hamilton City | K17: Highly Urban | L17: Waikato
H18: 40 | I18: Hastings District Council | J18: Hastings District | K18: Provincial Centres | L18: Gisborne and Hawkes Bay
H19: 9 | I19: Hauraki District Council | J19: Hauraki District | K19: Provincial Centres | L19: Waikato
H20: 41 | I20: Horowhenua District Council | J20: Horowhenua District | K20: Provincial Centres | L20: Taranaki, Manawatu and Whanganui
H21: 64 | I21: Hurunui District Council | J21: Hurunui District | K21: Rural Districts | L21: Canterbury
H22: 24 | I22: Hutt City Council | J22: Hutt City | K22: Highly Urban | L22: Wellington
H23: 65 | I23: Invercargill City Council | J23: Invercargill City | K23: Cities | L23: Southland and Otago
H24: 66 | I24: Kaikoura District Council | J24: Kaikoura District | K24: Provincial Centres | L24: Canterbury
H25: 78 | I25: Kaipara District Council | J25: Kaipara District | K25: Rural Districts | L25: North Auckland
H26: 25 | I26: Kapiti Coast District Council | J26: Kapiti Coast District | K26: Cities | L26: Wellington
H27: 21 | I27: Kawerau District Council | J27: Kawerau District | K27: Highly Urban | L27: Bay of Plenty
H28: 67 | I28: MacKenzie District Council | J28: MacKenzie District | K28: Rural Districts | L28: Canterbury
H29: 42 | I29: Manawatu District Council | J29: Manawatu District | K29: Rural Districts | L29: Taranaki, Manawatu and Whanganui
H30: 26 | I30: Marlborough District Council | J30: Marlborough District | K30: Provincial Centres | L30: Top of South Island and West Coast
H31: 87 | I31: Masterton District Council | J31: Masterton District | K31: Provincial Centres | L31: Wellington
H32: 8 | I32: Matamata-Piako District Council | J32: Matamata-Piako District | K32: Provincial Centres | L32: Waikato
H33: 43 | I33: Napier City Council | J33: Napier City | K33: Cities | L33: Gisborne and Hawkes Bay
H34: 30 | I34: Nelson City Council | J34: Nelson City | K34: Cities | L34: Top of South Island and West Coast
H35: 44 | I35: New Plymouth District Council | J35: New Plymouth District | K35: Provincial Centres | L35: Taranaki, Manawatu and Whanganui
H36: 12 | I36: Opotiki District Council | J36: Opotiki District | K36: Provincial Centres | L36: Bay of Plenty
H37: 17 | I37: Otorohanga District Council | J37: Otorohanga District | K37: Rural Districts | L37: Waikato
H38: 45 | I38: Palmerston North City Council | J38: Palmerston North City | K38: Cities | L38: Taranaki, Manawatu and Whanganui
H39: 31 | I39: Porirua City Council | J39: Porirua City | K39: Cities | L39: Wellington
H40: 68 | I40: Queenstown-Lakes District Council | J40: Queenstown-Lakes District | K40: Provincial Centres | L40: Southland and Otago
H41: 46 | I41: Rangitikei District Council | J41: Rangitikei District | K41: Rural Districts | L41: Taranaki, Manawatu and Whanganui
H42: 20 | I42: Rotorua Lakes Council | J42: Rotorua Lakes | K42: Provincial Centres | L42: Bay of Plenty
H43: 47 | I43: Ruapehu District Council | J43: Ruapehu District | K43: Rural Districts | L43: Taranaki, Manawatu and Whanganui
H44: 75 | I44: Selwyn District Council | J44: Selwyn District | K44: Rural Districts | L44: Canterbury
H45: 48 | I45: South Taranaki District Council | J45: South Taranaki District | K45: Rural Districts | L45: Taranaki, Manawatu and Whanganui
H46: 10 | I46: South Waikato District Council | J46: South Waikato District | K46: Provincial Centres | L46: Waikato
H47: 32 | I47: South Wairarapa District Council | J47: South Wairarapa District | K47: Rural Districts | L47: Wellington
H48: 69 | I48: Southland District Council | J48: Southland District | K48: Rural Districts | L48: Southland and Otago
H49: 49 | I49: Stratford District Council | J49: Stratford District | K49: Rural Districts | L49: Taranaki, Manawatu and Whanganui
H50: 54 | I50: Tararua District Council | J50: Tararua District | K50: Rural Districts | L50: Taranaki, Manawatu and Whanganui
H51: 33 | I51: Tasman District Council | J51: Tasman District | K51: Provincial Centres | L51: Top of South Island and West Coast
H52: 7 | I52: Taupo District Council | J52: Taupo District | K52: Provincial Centres | L52: Waikato
H53: 15 | I53: Tauranga City Council | J53: Tauranga City | K53: Highly Urban | L53: Bay of Plenty
H54: 18 | I54: Thames-Coromandel District Council | J54: Thames-Coromandel District | K54: Provincial Centres | L54: Waikato
H55: 70 | I55: Timaru District Council | J55: Timaru District | K55: Provincial Centres | L55: Canterbury
H56: 34 | I56: Upper Hutt City Council | J56: Upper Hutt City | K56: Cities | L56: Wellington
H57: 22 | I57: Waikato District Council | J57: Waikato District | K57: Rural Districts | L57: Waikato
H58: 74 | I58: Waimakariri District Council | J58: Waimakariri District | K58: Provincial Centres | L58: Canterbury
H59: 71 | I59: Waimate District Council | J59: Waimate District | K59: Rural Districts | L59: Canterbury
H60: 5 | I60: Waipa District Council | J60: Waipa District | K60: Provincial Centres | L60: Waikato
H61: 55 | I61: Wairoa District Council | J61: Wairoa District | K61: Rural Districts | L61: Gisborne and Hawkes Bay
H62: 72 | I62: Waitaki District Council | J62: Waitaki District | K62: Rural Districts | L62: Southland and Otago
H63: 14 | I63: Waitomo District Council | J63: Waitomo District | K63: Rural Districts | L63: Waikato
H64: 37 | I64: Wellington City Council | J64: Wellington City | K64: Highly Urban | L64: Wellington
H65: 13 | I65: Western Bay of Plenty District Council | J65: Western Bay of Plenty District | K65: Provincial Centres | L65: Bay of Plenty
H66: 73 | I66: Westland District Council | J66: Westland District | K66: Provincial Centres | L66: Top of South Island and West Coast
H67: 16 | I67: Whakatane District Council | J67: Whakatane District | K67: Provincial Centres | L67: Bay of Plenty
H68: 56 | I68: Whanganui District Council | J68: Whanganui District | K68: Provincial Centres | L68: Taranaki, Manawatu and Whanganui
H69: 77 | I69: Whangarei District Council | J69: Whangarei District | K69: Provincial Centres | L69: North Auckland
H70: 81 | I70: NZTA | K70: No Group | L70: No Region

Sheet Charts
A1: DATA QUALITY RESULTS 2018/19 | PERCENTAGE AT THE EXPECTED STANDARD
A3: My RCA: | B3: Waipa District Council | C3: Select RCA from drop down list
A4: Comparison | B4: Peer Group
A5: =B4&":" -> Peer Group: | B5: =IF($B$4=Lookups!$A$10,'Chart Data'!$D$3,IF(Charts!$B$4=Lookups!$A$11,'Chart Data'!$E$3,IF(Charts!$B$4=Lookups!$A$12,'Chart Data'!$F$3,""))) -> Provincial Centres
I39: V0.6: 14-02-2020

Sheet Chart Data (hidden)
B1: Financial Year | C1: 2018/19
B2: Reported Grade | C2: 1 | R2: RCA | T2: Comparison | V2: 10%ile | X2: 25%ile | Z2: 50%ile | AB2: 75%ile | AD2: 90%ile
B3: Individual RCA | C3: =Charts!$B$3 -> Waipa District Council | D3: National | E3: =VLOOKUP($C$3,Table22[[#All],[RCA_Name]:[Region]],4,FALSE) -> Waikato | F3: =VLOOKUP($C$3,Table22[[#All],[RCA_Name]:[Region]],3,FALSE) -> Provincial Centres | G3: 10 | H3: 25 | I3: 50 | J3: 75 | K3: 90 | L3: Sector Weight | M3: % of 360 | N3: Start Angle | O3: Finish Angle | P3: Chart Label | Q3: Theta | S3: Values | W3: Values | Y3: Values | AA3: Values | AC3: Values | AE3: Values | AI3: 0 | AJ3: 0.1 | AK3: 0.2 | AL3: 0.3 | AM3: 0.4 | AN3: 0.5 | AO3: 0.6 | AP3: 0.7 | AQ3: 0.8 | AR3: 0.9 | AS3: 1
A4: ONRC | B4: Accuracy | C4: =VLOOKUP($C$3,'RCA Results Table'!$A$5:$T$73,2,FALSE)/100 -> 0.9583333333 | D4: =VLOOKUP($D$3,'Region & Peer Group Results'!$A$34:$AA$35,2,FALSE)/100 -> 0.7155797101 | E4: =VLOOKUP($E$3,'Region & Peer Group Results'!$A$5:$AA$15,2,FALSE)/100 -> 0.8833333333 | F4: =VLOOKUP($F$3,'Region & Peer Group Results'!$A$22:$AA$27,2,FALSE)/100 -> 0.7098765432 | G4: 0.5133333333 | H4: 0.6 | I4: 0.6666666667 | J4: 0.7333333333 | K4: 0.8666666667 | L4: 2 | M4: =L4/SUM($L$4:$L$19) -> 0.08333333333 | N4: 0 | O4: =360*SUM($M$3:M4) -> 30 | P4: Accuracy | Q4: =(O4-N4)/2+N4 -> 15 | R4: =C4*SIN(Q4/180*PI()) -> 0.2480349182 | S4: =C4*COS(Q4/180*PI()) -> 0.9256789169 | T4: =IF(Charts!$B$5='Chart Data'!$D$3,D4*SIN(Q4/180*PI()),IF(Charts!$B$5='Chart Data'!$E$3,E4*SIN(Q4/180*PI()),IF(Charts!$B$5='Chart Data'!$F$3,F4*SIN(Q4/180*PI()),""))) -> 0.1837295691 | U4: =IF(Charts!$B$5='Chart Data'!$D$3,D4*COS(Q4/180*PI()),IF(Charts!$B$5='Chart Data'!$E$3,E4*COS(Q4/180*PI()),IF(Charts!$B$5='Chart Data'!$F$3,F4*COS(Q4/180*PI()),""))) -> 0.6856880866 | V4: =$G4*SIN($Q4/180*PI()) -> 0.1328604432 | W4: =$G4*COS($Q4/180*PI()) -> 0.4958419242 | X4: =$H4*SIN($Q4/180*PI()) -> 0.1552914271 | Y4: =$H4*COS($Q4/180*PI()) -> 0.5795554958 | Z4: =$I4*SIN($Q4/180*PI()) -> 0.1725460301 | AA4: =$I4*COS($Q4/180*PI()) -> 0.6439505509 | AB4: =$J4*SIN($Q4/180*PI()) -> 0.1898006331 | AC4: =$J4*COS($Q4/180*PI()) -> 0.7083456059 | AD4: =$K4*SIN($Q4/180*PI()) -> 0.2243098391 | AE4: =$K4*COS($Q4/180*PI()) -> 0.8371357161 | AH4: 32.72727273 | AI4: =$L4 -> 2 | AJ4: =$L4 -> 2 | AK4: 2 | AL4: 2 | AM4: 2 | AN4: 2 | AO4: 2 | AP4: 2 | AQ4: 2 | AR4: 2 | AS4: 2
A5: ONRC | B5: Completeness | C5: =VLOOKUP($C$3,'RCA Results Table'!$A$5:$T$73,3,FALSE)/100 -> 1 | D5: =VLOOKUP($D$3,'Region & Peer Group Results'!$A$34:$AA$35,3,FALSE)/100 -> 0.7115942029 | E5: =VLOOKUP($E$3,'Region & Peer Group Results'!$A$5:$AA$15,3,FALSE)/100 -> 0.83 | F5: =VLOOKUP($F$3,'Region & Peer Group Results'!$A$22:$AA$27,3,FALSE)/100 -> 0.7111111111 | G5: 0.4 | H5: 0.5 | I5: 0.6 | J5: 0.7 | K5: 0.8 | L5: 2 | M5: =L5/SUM($L$4:$L$19) -> 0.08333333333 | N5: =O4 -> 30 | O5: =360*SUM($M$3:M5) -> 60 | P5: Completeness | Q5: =(O5-N5)/2+N5 -> 45 | R5: 0.7071067812 | S5: 0.7071067812 | T5: =IF(Charts!$B$5='Chart Data'!$D$3,D5*SIN(Q5/180*PI()),IF(Charts!$B$5='Chart Data'!$E$3,E5*SIN(Q5/180*PI()),IF(Charts!$B$5='Chart Data'!$F$3,F5*SIN(Q5/180*PI()),""))) -> 0.5028314888 | U5: =IF(Charts!$B$5='Chart Data'!$D$3,D5*COS(Q5/180*PI()),IF(Charts!$B$5='Chart Data'!$E$3,E5*COS(Q5/180*PI()),IF(Charts!$B$5='Chart Data'!$F$3,F5*COS(Q5/180*PI()),""))) -> 0.5028314888 | V5: =$G5*SIN($Q5/180*PI()) -> 0.2828427125 | W5: =$G5*COS($Q5/180*PI()) -> 0.2828427125 | X5: =$H5*SIN($Q5/180*PI()) -> 0.3535533906 | Y5: =$H5*COS($Q5/180*PI()) -> 0.3535533906 | Z5: =$I5*SIN($Q5/180*PI()) -> 0.4242640687 | AA5: =$I5*COS($Q5/180*PI()) -> 0.4242640687 | AB5: =$J5*SIN($Q5/180*PI()) -> 0.4949747468 | AC5: =$J5*COS($Q5/180*PI()) -> 0.4949747468 | AD5: =$K5*SIN($Q5/180*PI()) -> 0.5656854249 | AE5: =$K5*COS($Q5/180*PI()) -> 0.5656854249 | AH5: 65.45454545 | AI5: =$L5 -> 2 | AJ5: 2 | AK5: 2 | AL5: 2 | AM5: 2 | AN5: 2 | AO5: 2 | AP5: 2 | AQ5: 2 | AR5: 2 | AS5: 2
A6: ONRC | B6: Timeliness | C6: =VLOOKUP($C$3,'RCA Results Table'!$A$5:$T$73,4,FALSE)/100 -> 0.75 | D6: =VLOOKUP($D$3,'Region & Peer Group Results'!$A$34:$AA$35,4,FALSE)/100 -> 0.6334541063 | E6: =VLOOKUP($E$3,'Region & Peer Group Results'!$A$5:$AA$15,4,FALSE)/100 -> 0.7416666667 | F6: =VLOOKUP($F$3,'Region & Peer Group Results'!$A$22:$AA$27,4,FALSE)/100 -> 0.6265432099 | G6: 0.1666666667 | H6: 0.1666666667 | I6: 0.3333333333 | J6: 0.5 | K6: 0.6666666667 | L6: 2 | M6: 0.08333333333 | N6: =O5 -> 60 | O6: =360*SUM($M$3:M6) -> 90 | P6: Timeliness | Q6: 75 | R6: 0.7244443697 | S6: 0.1941142838 | T6: =IF(Charts!$B$5='Chart Data'!$D$3,D6*SIN(Q6/180*PI()),IF(Charts!$B$5='Chart Data'!$E$3,E6*SIN(Q6/180*PI()),IF(Charts!$B$5='Chart Data'!$F$3,F6*SIN(Q6/180*PI()),""))) -> 0.6051942677 | U6: =IF(Charts!$B$5='Chart Data'!$D$3,D6*COS(Q6/180*PI()),IF(Charts!$B$5='Chart Data'!$E$3,E6*COS(Q6/180*PI()),IF(Charts!$B$5='Chart Data'!$F$3,F6*COS(Q6/180*PI()),""))) -> 0.1621613153 | V6: 0.1609876377 | W6: 0.04313650752 | X6: 0.1609876377 | Y6: 0.04313650752 | Z6: 0.3219752754 | AA6: 0.08627301503 | AB6: 0.4829629131 | AC6: 0.1294095226 | AD6: 0.6439505509 | AE6: 0.1725460301 | AH6: 98.18181818 | AI6: 2 | AJ6: 2 | AK6: 2 | AL6: 2 | AM6: 2 | AN6: 2 | AO6: 2 | AP6: 2 | AQ6: 2 | AR6: 2 | AS6: 2
A7: ONRC | B7: Network | C7: =VLOOKUP($C$3,'ONRC Category Results'!$A:$G,2,FALSE)/100 -> 0.9375 | D7: =VLOOKUP($D$3,'Region & Peer Group Results'!$A$34:$AA$35,22,FALSE)/100 -> 0.7418478261 | E7: =VLOOKUP($E$3,'Region & Peer Group Results'!$A$5:$AA$15,22,FALSE)/100 -> 0.9125 | F7: =VLOOKUP($F$3,'Region & Peer Group Results'!$A$22:$AA$27,22,FALSE)/100 -> 0.7361111111 | G7: 0.4545454545 | H7: 0.5454545455 | I7: 0.6363636364 | J7: 0.8181818182 | K7: 0.8181818182 | L7: 1 | M7: 0.04166666667 | N7: 90 | O7: =360*SUM($M$3:M7) -> 105 | P7: Network | Q7: 97.5 | R7: 0.9294795575 | S7: -0.1223683052 | T7: =IF(Charts!$B$5='Chart Data'!$D$3,D7*SIN(Q7/180*PI()),IF(Charts!$B$5='Chart Data'!$E$3,E7*SIN(Q7/180*PI()),IF(Charts!$B$5='Chart Data'!$F$3,F7*SIN(Q7/180*PI()),""))) -> 0.7298135785 | U7: =IF(Charts!$B$5='Chart Data'!$D$3,D7*COS(Q7/180*PI()),IF(Charts!$B$5='Chart Data'!$E$3,E7*COS(Q7/180*PI()),IF(Charts!$B$5='Chart Data'!$F$3,F7*COS(Q7/180*PI()),""))) -> -0.09608178038 | V7: 0.4506567552 | W7: -0.05933008737 | X7: 0.5407881062 | Y7: -0.07119610485 | Z7: 0.6309194572 | AA7: -0.08306212232 | AB7: 0.8111821593 | AC7: -0.1067941573 | AD7: 0.8111821593 | AE7: -0.1067941573 | AH7: 114.5454545 | AI7: 1 | AJ7: 1 | AK7: 1 | AL7: 1 | AM7: 1 | AN7: 1 | AO7: 1 | AP7: 1 | AQ7: 1 | AR7: 1 | AS7: 1
A8: ONRC | B8: Asset Inventory | C8: =VLOOKUP($C$3,'ONRC Category Results'!$A:$G,3,FALSE)/100 -> 1 | D8: =VLOOKUP($D$3,'Region & Peer Group Results'!$A$34:$AA$35,23,FALSE)/100 -> 0.518115942 | E8: =VLOOKUP($E$3,'Region & Peer Group Results'!$A$5:$AA$15,23,FALSE)/100 -> 0.825 | F8: =VLOOKUP($F$3,'Region & Peer Group Results'!$A$22:$AA$27,23,FALSE)/100 -> 0.4537037037 | G8: 0 | H8: 0.25 | I8: 0.25 | J8: 0.5 | K8: 0.75 | L8: 1 | M8: 0.04166666667 | N8: 105 | O8: =360*SUM($M$3:M8) -> 120 | P8: Asset Inventory | Q8: 112.5 | R8: 0.9238795325 | S8: -0.3826834324 | T8: =IF(Charts!$B$5='Chart Data'!$D$3,D8*SIN(Q8/180*PI()),IF(Charts!$B$5='Chart Data'!$E$3,E8*SIN(Q8/180*PI()),IF(Charts!$B$5='Chart Data'!$F$3,F8*SIN(Q8/180*PI()),""))) -> 0.4191675657 | U8: =IF(Charts!$B$5='Chart Data'!$D$3,D8*COS(Q8/180*PI()),IF(Charts!$B$5='Chart Data'!$E$3,E8*COS(Q8/180*PI()),IF(Charts!$B$5='Chart Data'!$F$3,F8*COS(Q8/180*PI()),""))) -> -0.1736248906 | V8: 0 | W8: 0 | X8: 0.2309698831 | Y8: -0.09567085809 | Z8: 0.2309698831 | AA8: -0.09567085809 | AB8: 0.4619397663 | AC8: -0.1913417162 | AD8: 0.6929096494 | AE8: -0.2870125743 | AH8: 130.9090909 | AI8: 1 | AJ8: 1 | AK8: 1 | AL8: 1 | AM8: 1 | AN8: 1 | AO8: 1 | AP8: 1 | AQ8: 1 | AR8: 1 | AS8: 1
A9: ONRC | B9: Maintenance Activity | C9: =VLOOKUP($C$3,'ONRC Category Results'!$A:$G,4,FALSE)/100 -> 1 | D9: =VLOOKUP($D$3,'Region & Peer Group Results'!$A$34:$AA$35,24,FALSE)/100 -> 0.729468599 | E9: =VLOOKUP($E$3,'Region & Peer Group Results'!$A$5:$AA$15,24,FALSE)/100 -> 0.8666666667 | F9: =VLOOKUP($F$3,'Region & Peer Group Results'!$A$22:$AA$27,24,FALSE)/100 -> 0.7407407407 | G9: 0 | H9: 0.5833333333 | I9: 0.6666666667 | J9: 1 | K9: 1 | L9: 1 | M9: 0.04166666667 | N9: 120 | O9: =360*SUM($M$3:M9) -> 135 | P9: Maintenance Activtity | Q9: 127.5 | R9: 0.7933533403 | S9: -0.608761429 | T9: =IF(Charts!$B$5='Chart Data'!$D$3,D9*SIN(Q9/180*PI()),IF(Charts!$B$5='Chart Data'!$E$3,E9*SIN(Q9/180*PI()),IF(Charts!$B$5='Chart Data'!$F$3,F9*SIN(Q9/180*PI()),""))) -> 0.587669141 | U9: =IF(Charts!$B$5='Chart Data'!$D$3,D9*COS(Q9/180*PI()),IF(Charts!$B$5='Chart Data'!$E$3,E9*COS(Q9/180*PI()),IF(Charts!$B$5='Chart Data'!$F$3,F9*COS(Q9/180*PI()),""))) -> -0.4509343919 | V9: 0 | W9: 0 | X9: 0.4627894485 | Y9: -0.3551108336 | Z9: 0.5289022269 | AA9: -0.4058409527 | AB9: 0.7933533403 | AC9: -0.608761429 | AD9: 0.7933533403 | AE9: -0.608761429 | AH9: 147.2727273 | AI9: 1 | AJ9: 1 | AK9: 1 | AL9: 1 | AM9: 1 | AN9: 1 | AO9: 1 | AP9: 1 | AQ9: 1 | AR9: 1 | AS9: 1
A10: ONRC | B10: Condition | C10: =VLOOKUP($C$3,'ONRC Category Results'!$A:$G,5,FALSE)/100 -> 1 | D10: =VLOOKUP($D$3,'Region & Peer Group Results'!$A$34:$AA$35,25,FALSE)/100 -> 0.9057971014 | E10: =VLOOKUP($E$3,'Region & Peer Group Results'!$A$5:$AA$15,25,FALSE)/100 -> 0.8 | F10: =VLOOKUP($F$3,'Region & Peer Group Results'!$A$22:$AA$27,25,FALSE)/100 -> 0.8888888889 | G10: 0.5 | H10: 1 | I10: 1 | J10: 1 | K10: 1 | L10: 1 | M10: 0.04166666667 | N10: 135 | O10: =360*SUM($M$3:M10) -> 150 | P10: Condition | Q10: 142.5 | R10: 0.608761429 | S10: -0.7933533403 | T10: =IF(Charts!$B$5='Chart Data'!$D$3,D10*SIN(Q10/180*PI()),IF(Charts!$B$5='Chart Data'!$E$3,E10*SIN(Q10/180*PI()),IF(Charts!$B$5='Chart Data'!$F$3,F10*SIN(Q10/180*PI()),""))) -> 0.5411212702 | U10: =IF(Charts!$B$5='Chart Data'!$D$3,D10*COS(Q10/180*PI()),IF(Charts!$B$5='Chart Data'!$E$3,E10*COS(Q10/180*PI()),IF(Charts!$B$5='Chart Data'!$F$3,F10*COS(Q10/180*PI()),""))) -> -0.7052029691 | V10: 0.3043807145 | W10: -0.3966766701 | X10: 0.608761429 | Y10: -0.7933533403 | Z10: 0.608761429 | AA10: -0.7933533403 | AB10: 0.608761429 | AC10: -0.7933533403 | AD10: 0.608761429 | AE10: -0.7933533403 | AH10: 163.6363636 | AI10: 1 | AJ10: 1 | AK10: 1 | AL10: 1 | AM10: 1 | AN10: 1 | AO10: 1 | AP10: 1 | AQ10: 1 | AR10: 1 | AS10: 1
A11: ONRC | B11: Demand | C11: =VLOOKUP($C$3,'ONRC Category Results'!$A:$G,6,FALSE)/100 -> 0.8571428571 | D11: =VLOOKUP($D$3,'Region & Peer Group Results'!$A$34:$AA$35,26,FALSE)/100 -> 0.6518288475 | E11: =VLOOKUP($E$3,'Region & Peer Group Results'!$A$5:$AA$15,26,FALSE)/100 -> 0.7523809524 | F11: =VLOOKUP($F$3,'Region & Peer Group Results'!$A$22:$AA$27,26,FALSE)/100 -> 0.6701940035 | G11: 0.3333333333 | H11: 0.4166666667 | I11: 0.5555555556 | J11: 0.7777777778 | K11: 0.7777777778 | L11: 1 | M11: 0.04166666667 | N11: 150 | O11: =360*SUM($M$3:M11) -> 165 | P11: Demand | Q11: 157.5 | R11: 0.3280143706 | S11: -0.7918967422 | T11: =IF(Charts!$B$5='Chart Data'!$D$3,D11*SIN(Q11/180*PI()),IF(Charts!$B$5='Chart Data'!$E$3,E11*SIN(Q11/180*PI()),IF(Charts!$B$5='Chart Data'!$F$3,F11*SIN(Q11/180*PI()),""))) -> 0.2564721416 | U11: =IF(Charts!$B$5='Chart Data'!$D$3,D11*COS(Q11/180*PI()),IF(Charts!$B$5='Chart Data'!$E$3,E11*COS(Q11/180*PI()),IF(Charts!$B$5='Chart Data'!$F$3,F11*COS(Q11/180*PI()),""))) -> -0.6191785227 | V11: 0.1275611441 | W11: -0.3079598442 | X11: 0.1594514302 | Y11: -0.3849498052 | Z11: 0.2126019069 | AA11: -0.513266407 | AB11: 0.2976426696 | AC11: -0.7185729697 | AD11: 0.2976426696 | AE11: -0.7185729697 | AH11: 180 | AI11: 1 | AJ11: 1 | AK11: 1 | AL11: 1 | AM11: 1 | AN11: 1 | AO11: 1 | AP11: 1 | AQ11: 1 | AR11: 1 | AS11: 1
A12: ONRC | B12: Crash | C12: =VLOOKUP($C$3,'ONRC Category Results'!$A:$G,7,FALSE)/100 -> 1 | D12: =VLOOKUP($D$3,'Region & Peer Group Results'!$A$34:$AA$35,27,FALSE)/100 -> 0.8333333333 | E12: =VLOOKUP($E$3,'Region & Peer Group Results'!$A$5:$AA$15,27,FALSE)/100 -> 0.9 | F12: =VLOOKUP($F$3,'Region & Peer Group Results'!$A$22:$AA$27,27,FALSE)/100 -> 0.8703703704 | G12: 0 | H12: 0.375 | I12: 0.5 | J12: 0.5 | K12: 0.5 | L12: 1 | M12: 0.04166666667 | N12: 165 | O12: =360*SUM($M$3:M12) -> 180 | P12: Crash | Q12: 172.5 | R12: 0.1305261922 | S12: -0.9914448614 | T12: =IF(Charts!$B$5='Chart Data'!$D$3,D12*SIN(Q12/180*PI()),IF(Charts!$B$5='Chart Data'!$E$3,E12*SIN(Q12/180*PI()),IF(Charts!$B$5='Chart Data'!$F$3,F12*SIN(Q12/180*PI()),""))) -> 0.1136061303 | U12: =IF(Charts!$B$5='Chart Data'!$D$3,D12*COS(Q12/180*PI()),IF(Charts!$B$5='Chart Data'!$E$3,E12*COS(Q12/180*PI()),IF(Charts!$B$5='Chart Data'!$F$3,F12*COS(Q12/180*PI()),""))) -> -0.8629242312 | V12: 0 | W12: 0 | X12: 0.04894732208 | Y12: -0.371791823 | Z12: 0.06526309611 | AA12: -0.4957224307 | AB12: 0.06526309611 | AC12: -0.4957224307 | AD12: 0.06526309611 | AE12: -0.4957224307 | AH12: 196.3636364 | AI12: 1 | AJ12: 1 | AK12: 1 | AL12: 1 | AM12: 1 | AN12: 1 | AO12: 1 | AP12: 1 | AQ12: 1 | AR12: 1 | AS12: 1
A13: Asset Management | B13: Condition | C13: =VLOOKUP($C$3,'RCA Results Table'!$A$5:$T$73,18,FALSE)/100 -> 0.5 | D13: =VLOOKUP($D$3,'Region & Peer Group Results'!$A$34:$AA$35,18,FALSE)/100 -> 0.597826087 | E13: =VLOOKUP($E$3,'Region & Peer Group Results'!$A$5:$AA$15,18,FALSE)/100 -> 0.75 | F13: =VLOOKUP($F$3,'Region & Peer Group Results'!$A$22:$AA$27,18,FALSE)/100 -> 0.6388888889 | G13: 0 | H13: 0.375 | I13: 0.5 | J13: 1 | K13: 0.6 | L13: =6/4 -> 1.5 | M13: 0.0625 | N13: 180 | O13: =360*SUM($M$3:M13) -> 202.5 | P13: Condition | Q13: 191.25 | R13: -0.09754516101 | S13: -0.4903926402 | T13: =IF(Charts!$B$5='Chart Data'!$D$3,D13*SIN(Q13/180*PI()),IF(Charts!$B$5='Chart Data'!$E$3,E13*SIN(Q13/180*PI()),IF(Charts!$B$5='Chart Data'!$F$3,F13*SIN(Q13/180*PI()),""))) -> -0.1246410391 | U13: =IF(Charts!$B$5='Chart Data'!$D$3,D13*COS(Q13/180*PI()),IF(Charts!$B$5='Chart Data'!$E$3,E13*COS(Q13/180*PI()),IF(Charts!$B$5='Chart Data'!$F$3,F13*COS(Q13/180*PI()),""))) -> -0.626612818 | V13: 0 | W13: 0 | X13: -0.07315887076 | Y13: -0.3677944802 | Z13: -0.09754516101 | AA13: -0.4903926402 | AB13: -0.195090322 | AC13: -0.9807852804 | AD13: -0.1170541932 | AE13: -0.5884711682 | AH13: 220.9090909 | AI13: 1.5 | AJ13: 1.5 | AK13: 1.5 | AL13: 1.5 | AM13: 1.5 | AN13: 1.5 | AO13: 1.5 | AP13: 1.5 | AQ13: 1.5 | AR13: 1.5 | AS13: 1.5
A14: Asset Management | B14: Maintenance Activity | C14: =VLOOKUP($C$3,'RCA Results Table'!$A$5:$T$73,19,FALSE)/100 -> 0.75 | D14: =VLOOKUP($D$3,'Region & Peer Group Results'!$A$34:$AA$35,19,FALSE)/100 -> 0.6916666667 | E14: =VLOOKUP($E$3,'Region & Peer Group Results'!$A$5:$AA$15,19,FALSE)/100 -> 0.55 | F14: =VLOOKUP($F$3,'Region & Peer Group Results'!$A$22:$AA$27,19,FALSE)/100 -> 0.6170212766 | G14: 0 | H14: 0.5 | I14: 0.5 | J14: 0.75 | K14: 0.75 | L14: =6/4 -> 1.5 | M14: 0.0625 | N14: 202.5 | O14: =360*SUM($M$3:M14) -> 225 | P14: Maintenance Activtity | Q14: 213.75 | R14: -0.4166776748 | S14: -0.6236022092 | T14: =IF(Charts!$B$5='Chart Data'!$D$3,D14*SIN(Q14/180*PI()),IF(Charts!$B$5='Chart Data'!$E$3,E14*SIN(Q14/180*PI()),IF(Charts!$B$5='Chart Data'!$F$3,F14*SIN(Q14/180*PI()),""))) -> -0.3427986544 | U14: =IF(Charts!$B$5='Chart Data'!$D$3,D14*COS(Q14/180*PI()),IF(Charts!$B$5='Chart Data'!$E$3,E14*COS(Q14/180*PI()),IF(Charts!$B$5='Chart Data'!$F$3,F14*COS(Q14/180*PI()),""))) -> -0.5130344416 | V14: 0 | W14: 0 | X14: -0.2777851165 | Y14: -0.4157348062 | Z14: -0.2777851165 | AA14: -0.4157348062 | AB14: -0.4166776748 | AC14: -0.6236022092 | AD14: -0.4166776748 | AE14: -0.6236022092 | AH14: 245.4545455 | AI14: 1.5 | AJ14: 1.5 | AK14: 1.5 | AL14: 1.5 | AM14: 1.5 | AN14: 1.5 | AO14: 1.5 | AP14: 1.5 | AQ14: 1.5 | AR14: 1.5 | AS14: 1.5
A15: Asset Management | B15: Asset Inventory | C15: =VLOOKUP($C$3,'RCA Results Table'!$A$5:$T$73,17,FALSE)/100 -> 0.8095238095 | D15: =VLOOKUP($D$3,'Region & Peer Group Results'!$A$34:$AA$35,17,FALSE)/100 -> 0.5424791086 | E15: =VLOOKUP($E$3,'Region & Peer Group Results'!$A$5:$AA$15,17,FALSE)/100 -> 0.7822966507 | F15: =VLOOKUP($F$3,'Region & Peer Group Results'!$A$22:$AA$27,17,FALSE)/100 -> 0.5469858156 | G15: 0.2272727273 | H15: 0.2727272727 | I15: 0.3636363636 | J15: 0.4545454545 | K15: 0.5 | L15: =6/4 -> 1.5 | M15: 0.0625 | N15: 225 | O15: =360*SUM($M$3:M15) -> 247.5 | P15: Asset Inventory | Q15: 236.25 | R15: -0.6730944481 | S15: -0.4497473315 | T15: =IF(Charts!$B$5='Chart Data'!$D$3,D15*SIN(Q15/180*PI()),IF(Charts!$B$5='Chart Data'!$E$3,E15*SIN(Q15/180*PI()),IF(Charts!$B$5='Chart Data'!$F$3,F15*SIN(Q15/180*PI()),""))) -> -0.454802084 | U15: =IF(Charts!$B$5='Chart Data'!$D$3,D15*COS(Q15/180*PI()),IF(Charts!$B$5='Chart Data'!$E$3,E15*COS(Q15/180*PI()),IF(Charts!$B$5='Chart Data'!$F$3,F15*COS(Q15/180*PI()),""))) -> -0.303889037 | V15: -0.1889703664 | W15: -0.126265962 | X15: -0.2267644397 | Y15: -0.1515191545 | Z15: -0.3023525863 | AA15: -0.2020255393 | AB15: -0.3779407329 | AC15: -0.2525319241 | AD15: -0.4157348062 | AE15: -0.2777851165 | AH15: 270 | AI15: 1.5 | AJ15: 1.5 | AK15: 1.5 | AL15: 1.5 | AM15: 1.5 | AN15: 1.5 | AO15: 1.5 | AP15: 1.5 | AQ15: 1.5 | AR15: 1.5 | AS15: 1.5
A16: Asset Management | B16: Network | C16: =VLOOKUP($C$3,'RCA Results Table'!$A$5:$T$73,16,FALSE)/100 -> 0.75 | D16: =VLOOKUP($D$3,'Region & Peer Group Results'!$A$34:$AA$35,16,FALSE)/100 -> 0.5056179775 | E16: =VLOOKUP($E$3,'Region & Peer Group Results'!$A$5:$AA$15,16,FALSE)/100 -> 0.6666666667 | F16: =VLOOKUP($F$3,'Region & Peer Group Results'!$A$22:$AA$27,16,FALSE)/100 -> 0.4905660377 | G16: 0 | H16: 0.25 | I16: 0.375 | J16: 0.5 | K16: 0.75 | L16: =6/4 -> 1.5 | M16: 0.0625 | N16: 247.5 | O16: =360*SUM($M$3:M16) -> 270 | P16: Network | Q16: 258.75 | R16: -0.7355889603 | S16: -0.1463177415 | T16: =IF(Charts!$B$5='Chart Data'!$D$3,D16*SIN(Q16/180*PI()),IF(Charts!$B$5='Chart Data'!$E$3,E16*SIN(Q16/180*PI()),IF(Charts!$B$5='Chart Data'!$F$3,F16*SIN(Q16/180*PI()),""))) -> -0.4811399489 | U16: =IF(Charts!$B$5='Chart Data'!$D$3,D16*COS(Q16/180*PI()),IF(Charts!$B$5='Chart Data'!$E$3,E16*COS(Q16/180*PI()),IF(Charts!$B$5='Chart Data'!$F$3,F16*COS(Q16/180*PI()),""))) -> -0.09570468627 | V16: 0 | W16: 0 | X16: -0.2451963201 | Y16: -0.0487725805 | Z16: -0.3677944802 | AA16: -0.07315887076 | AB16: -0.4903926402 | AC16: -0.09754516101 | AD16: -0.7355889603 | AE16: -0.1463177415 | AH16: 294.5454545 | AI16: 1.5 | AJ16: 1.5 | AK16: 1.5 | AL16: 1.5 | AM16: 1.5 | AN16: 1.5 | AO16: 1.5 | AP16: 1.5 | AQ16: 1.5 | AR16: 1.5 | AS16: 1.5
A17: Asset Management | B17: Timeliness | C17: =VLOOKUP($C$3,'RCA Results Table'!$A$5:$T$73,15,FALSE)/100 -> 0.6666666667 | D17: =VLOOKUP($D$3,'Region & Peer Group Results'!$A$34:$AA$35,15,FALSE)/100 -> 0.4506578947 | E17: =VLOOKUP($E$3,'Region & Peer Group Results'!$A$5:$AA$15,15,FALSE)/100 -> 0.6123595506 | F17: =VLOOKUP($F$3,'Region & Peer Group Results'!$A$22:$AA$27,15,FALSE)/100 -> 0.4354166667 | G17: 0.1 | H17: 0.275 | I17: 0.4 | J17: 0.5 | K17: 0.5590909091 | L17: 2 | M17: 0.08333333333 | N17: 270 | O17: =360*SUM($M$3:M17) -> 300 | P17: Timeliness | Q17: 285 | R17: -0.6439505509 | S17: 0.1725460301 | T17: =IF(Charts!$B$5='Chart Data'!$D$3,D17*SIN(Q17/180*PI()),IF(Charts!$B$5='Chart Data'!$E$3,E17*SIN(Q17/180*PI()),IF(Charts!$B$5='Chart Data'!$F$3,F17*SIN(Q17/180*PI()),""))) -> -0.4205802035 | U17: =IF(Charts!$B$5='Chart Data'!$D$3,D17*COS(Q17/180*PI()),IF(Charts!$B$5='Chart Data'!$E$3,E17*COS(Q17/180*PI()),IF(Charts!$B$5='Chart Data'!$F$3,F17*COS(Q17/180*PI()),""))) -> 0.1126941259 | V17: -0.09659258263 | W17: 0.02588190451 | X17: -0.2656296022 | Y17: 0.0711752374 | Z17: -0.3863703305 | AA17: 0.103527618 | AB17: -0.4829629131 | AC17: 0.1294095226 | AD17: -0.5400403483 | AE17: 0.1447033752 | AH17: 327.2727273 | AI17: 2 | AJ17: 2 | AK17: 2 | AL17: 2 | AM17: 2 | AN17: 2 | AO17: 2 | AP17: 2 | AQ17: 2 | AR17: 2 | AS17: 2
A18: Asset Management | B18: Completeness | C18: =VLOOKUP($C$3,'RCA Results Table'!$A$5:$T$73,14,FALSE)/100 -> 0.9166666667 | D18: =VLOOKUP($D$3,'Region & Peer Group Results'!$A$34:$AA$35,14,FALSE)/100 -> 0.6471306471 | E18: =VLOOKUP($E$3,'Region & Peer Group Results'!$A$5:$AA$15,14,FALSE)/100 -> 0.8823529412 | F18: =VLOOKUP($F$3,'Region & Peer Group Results'!$A$22:$AA$27,14,FALSE)/100 -> 0.6397515528 | G18: 0.25 | H18: 0.3333333333 | I18: 0.5 | J18: 0.6666666667 | K18: 0.75 | L18: 2 | M18: 0.08333333333 | N18: 300 | O18: =360*SUM($M$3:M18) -> 330 | P18: Completeness | Q18: 315 | R18: -0.6481812161 | S18: 0.6481812161 | T18: =IF(Charts!$B$5='Chart Data'!$D$3,D18*SIN(Q18/180*PI()),IF(Charts!$B$5='Chart Data'!$E$3,E18*SIN(Q18/180*PI()),IF(Charts!$B$5='Chart Data'!$F$3,F18*SIN(Q18/180*PI()),""))) -> -0.4523726613 | U18: =IF(Charts!$B$5='Chart Data'!$D$3,D18*COS(Q18/180*PI()),IF(Charts!$B$5='Chart Data'!$E$3,E18*COS(Q18/180*PI()),IF(Charts!$B$5='Chart Data'!$F$3,F18*COS(Q18/180*PI()),""))) -> 0.4523726613 | V18: -0.1767766953 | W18: 0.1767766953 | X18: -0.2357022604 | Y18: 0.2357022604 | Z18: -0.3535533906 | AA18: 0.3535533906 | AB18: -0.4714045208 | AC18: 0.4714045208 | AD18: -0.5303300859 | AE18: 0.5303300859 | AH18: 360 | AI18: 2 | AJ18: 2 | AK18: 2 | AL18: 2 | AM18: 2 | AN18: 2 | AO18: 2 | AP18: 2 | AQ18: 2 | AR18: 2 | AS18: 2
A19: Asset Management | B19: Accuracy | C19: =VLOOKUP($C$3,'RCA Results Table'!$A$5:$T$73,13,FALSE)/100 -> 0.7 | D19: =VLOOKUP($D$3,'Region & Peer Group Results'!$A$34:$AA$35,13,FALSE)/100 -> 0.5327380952 | E19: =VLOOKUP($E$3,'Region & Peer Group Results'!$A$5:$AA$15,13,FALSE)/100 -> 0.71 | F19: =VLOOKUP($F$3,'Region & Peer Group Results'!$A$22:$AA$27,13,FALSE)/100 -> 0.5627376426 | G19: 0.2 | H19: 0.3 | I19: 0.4 | J19: 0.5 | K19: 1 | L19: 2 | M19: 0.08333333333 | N19: 330 | O19: =360*SUM($M$3:M19) -> 360 | P19: Accuracy | Q19: 345 | R19: -0.1811733316 | S19: 0.6761480784 | T19: =IF(Charts!$B$5='Chart Data'!$D$3,D19*SIN(Q19/180*PI()),IF(Charts!$B$5='Chart Data'!$E$3,E19*SIN(Q19/180*PI()),IF(Charts!$B$5='Chart Data'!$F$3,F19*SIN(Q19/180*PI()),""))) -> -0.1456472193 | U19: =IF(Charts!$B$5='Chart Data'!$D$3,D19*COS(Q19/180*PI()),IF(Charts!$B$5='Chart Data'!$E$3,E19*COS(Q19/180*PI()),IF(Charts!$B$5='Chart Data'!$F$3,F19*COS(Q19/180*PI()),""))) -> 0.5435628224 | V19: -0.05176380902 | W19: 0.1931851653 | X19: -0.07764571353 | Y19: 0.2897777479 | Z19: -0.103527618 | AA19: 0.3863703305 | AB19: -0.1294095226 | AC19: 0.4829629131 | AD19: -0.2588190451 | AE19: 0.9659258263 | AH19: 392.7272727 | AI19: 2 | AJ19: 2 | AK19: 2 | AL19: 2 | AM19: 2 | AN19: 2 | AO19: 2 | AP19: 2 | AQ19: 2 | AR19: 2 | AS19: 2
A20: ONRC | B20: =B4 -> Accuracy | C20: =C4 -> 0.9583333333 | D20: =D4/100 -> 0.007155797101 | E20: =E4 -> 0.8833333333 | F20: 0.7098765432 | G20: =G4 -> 0.5133333333 | H20: 0.6 | I20: 0.6666666667 | J20: 0.7333333333 | K20: 0.8666666667 | L20: 2 | M20: 0.08333333333 | N20: 0 | O20: 30 | P20: Accuracy | Q20: 15 | R20: 0.2480349182 | S20: 0.9256789169 | T20: 0.1837295691 | U20: 0.6856880866 | V20: 0.1328604432 | W20: 0.4958419242 | X20: 0.1552914271 | Y20: 0.5795554958 | Z20: 0.1725460301 | AA20: 0.6439505509 | AB20: 0.1898006331 | AC20: 0.7083456059 | AD20: 0.2243098391 | AE20: 0.8371357161
